Cogmind - Beta 17 @@@ ROGUE MODE // 2026.07.21 @ 19:34:47 Player: KURIIRI Result: Establishing 0b11! Performance ------------- Evolutions (9) 4500 Regions Visited (27) 5400 Robots Destroyed (666) 3330 Value Destroyed (36877) 36877 Prototype IDs (371) 7420 Alien Tech Used (0) 0 Bonus (63135) 63135 TOTAL SCORE: 120662 Bonus ------- High Alert Combat Kills 5597 Follower Combat Kills 4391 Prayed to X0-1V1 5000 Major X0-1V1 Interference 16050 Entered Garrisons 1600 Used RIF Installer 4500 Network Hubs Disabled 600 Met Zhirov 300 Built Enhanced Grunts 300 A7 Reached Mainframe 300 Met R17 at Cetus 500 Met R17 at Research 2000 Destroyed MAIN.C Guards 500 Met MAIN.C 5000 Hacked MAIN.C 300 Destroyed MAIN.C Shell 5000 Destroyed MAIN.C 10000 Win 3000 Friendly Fire -1803 Cogmind --------- Core Integrity 1562/1660 Matter 218/300 Energy 2072/2088 System Corruption 4% Temperature Cool (9) Movement Walking (165) Location 0b11 Command Parts ------- > --- POWER (3) -------- Particle-Antimatter Reactor > --- PROPULSION (6) --- Biometal-Centrium Exoskeleton > --- UTILITY (12) ----- Armored Scrap Engine Advanced Heat Sink (fused) Advanced Heat Sink (fused) Advanced Heat Sink High-capacity Storage Unit Experimental Core Analyzer Improved Armor Integrity Analyzer Improved Kinecellerator Experimental EM Disruption Field Relay Coupler [Specialist] (99) Relay Coupler [Behemoth] (53) > --- WEAPON (4) ------- Hpw. Ballistic Helical Construct/C > --- INVENTORY (20) --- Huge Storage Unit High-capacity Matter Pod (200) EM Shield Relay Coupler [Sentry] (37) Improved Dynamic Insulation System Enhanced Nova Cannon Enhanced Gamma Bomb Array Fusion Bomb Launcher Advanced Remote Datajack Advanced Remote Datajack Advanced Remote Datajack Peak State ------------ > --- POWER ------------ Particle-Antimatter Reactor > --- PROPULSION ------- Biometal-Centrium Exoskeleton > --- UTILITY ---------- Armored Scrap Engine Advanced Heat Sink Advanced Heat Sink High-capacity Storage Unit Enhanced Optical Array Advanced Remote Force Field Relay Coupler [Grunt] Relay Coupler [Specialist] Relay Coupler [Behemoth] Relay Coupler [Proto] Relay Coupler [Proto] > --- WEAPON ----------- Advanced Remote Datajack Hpw. Ballistic Helical Construct/C > --- INVENTORY -------- Advanced Heat Sink Huge Storage Unit High-capacity Matter Pod Improved Kinecellerator EM Shield Experimental EM Disruption Field Advanced Remote Force Field Relay Coupler [Sentry] Relay Coupler [Proto] Improved Dynamic Insulation System Enhanced Nova Cannon Enhanced Hardcell Cannon Enhanced Hardcell Cannon Enhanced Gamma Bomb Array Fusion Bomb Launcher Advanced Remote Datajack Advanced Remote Datajack [Rating: 203] Favorites ----------- Power Constructs Engine Ion Engine Power Core Neutrino Core Reactor Constructs Propulsion Constructs Treads Light Treads Leg Constructs Wheel Compact Wheel Utility Armored Scrap Engine Device Armored Scrap Engine Storage Huge Storage Unit Processor Experimental Core Analyzer Hackware Relay Coupler [Grunt] Protection Hardened Medium Armor Plating Weapon Constructs Energy Gun Medium Laser Energy Cannon Beam Cannon Ballistic Gun Heavy Machine Gun Ballistic Cannon Constructs Launcher Grenade Launcher Special Weapon Advanced Remote Datajack Impact Weapon Powered Hammer Slashing Weapon Great Axe Build | -11 -10 -9 -9 -9 -9 -7 -7 -7 -7 -6 -6 -5 -5 -4 -4 -4 -4 -4 -4 -4 -4 -3 -3 -2 -2 -1 -1 ------- Run | Yrd Mat Mat Sto Gar Rec Fac Was Fac Gar Fac Gar Fac Gar Fac Gar Fac Ext Cet Arc Hub Gar Res Gar Res Gar Acc Com Slots Evolved 18 | . . 2 . . . 4 . . . 2 . 2 . 2 . . . . . . . 2 . 2 . 2 . Power 1 | . . . . . . . . . . . . 1 . . . . . . . . . . . . . . . Propulsion 3 | . . 1 . . . 1 . . . . . . . 1 . . . . . . . . . . . . . Utility 11 | . . . . . . 2 . . . 2 . 1 . . . . . . . . . 2 . 2 . 2 . Weapon 3 | . . 1 . . . 1 . . . . . . . 1 . . . . . . . . . . . . . Parts Attached 232 | 4 11 11 8 7 7 9 3 . 4 7 7 9 6 17 15 12 6 3 . 11 6 14 9 18 9 4 15 Power 6 | 1 . . 1 1 . 2 . . . . . 1 . . . . . . . . . . . . . . . Engine 5 | 1 . . 1 1 . 2 . . . . . . . . . . . . . . . . . . . . . Core 1 | . . . . . . . . . . . . 1 . . . . . . . . . . . . . . . Reactor . | . . . . . . . . . . . . . . . . . . . . . . . . . . . . Propulsion 15 | 2 2 3 5 2 . 1 . . . . . . . . . . . . . . . . . . . . . Treads 11 | 2 1 3 3 2 . . . . . . . . . . . . . . . . . . . . . . . Leg . | . . . . . . . . . . . . . . . . . . . . . . . . . . . . Wheel 4 | . 1 . 2 . . 1 . . . . . . . . . . . . . . . . . . . . . Hover . | . . . . . . . . . . . . . . . . . . . . . . . . . . . . Flight . | . . . . . . . . . . . . . . . . . . . . . . . . . . . . Utility 154 | 1 3 4 . 2 6 3 2 . 3 5 5 6 5 12 13 10 6 1 . 6 5 12 7 15 8 4 10 Device 72 | 1 2 1 . 1 4 . 2 . 2 1 4 3 1 5 6 4 5 . . 5 2 5 2 7 5 . 4 Storage 5 | . 1 . . . 1 1 . . . . . . 1 . . . . . . . . 1 . . . . . Processor 14 | . . . . . . . . . . 2 . . . 2 2 2 1 . . . . 1 . 2 . . 2 Hackware 54 | . . 1 . . . 1 . . . 2 1 3 3 5 5 4 . . . . 3 4 5 6 3 4 4 Protection 9 | . . 2 . 1 1 1 . . 1 . . . . . . . . 1 . 1 . 1 . . . . . Artifact . | . . . . . . . . . . . . . . . . . . . . . . . . . . . . Weapon 57 | . 6 4 2 2 1 3 1 . 1 2 2 2 1 5 2 2 . 2 . 5 1 2 2 3 1 . 5 Energy Gun 7 | . 3 . . . . 1 . . . 1 1 . . . . . . 1 . . . . . . . . . Energy Cannon 12 | . 2 3 1 2 . . . . . . . . . . . 1 . . . 1 . . . 1 . . 1 Ballistic Gun 7 | . . 1 . . . . 1 . . . . 1 . 1 . . . 1 . . 1 . . . . . 1 Ballistic Cannon 4 | . . . 1 . . . . . . . . . . 1 1 . . . . . . 1 . . . . . Launcher 9 | . 1 . . . . 1 . . . . 1 . . 3 . . . . . 1 . . 1 . . . 1 Special Weapon 15 | . . . . . . . . . . 1 . 1 1 . 1 1 . . . 3 . 1 1 2 1 . 2 Impact Weapon 2 | . . . . . 1 . . . 1 . . . . . . . . . . . . . . . . . . Slashing Weapon 1 | . . . . . . 1 . . . . . . . . . . . . . . . . . . . . . Piercing Weapon . | . . . . . . . . . . . . . . . . . . . . . . . . . . . . Special Melee Weapon . | . . . . . . . . . . . . . . . . . . . . . . . . . . . . Unidentified Prototypes 34 | . 1 1 . . 1 1 1 . . 1 . 1 . 7 4 2 1 3 . 3 . 6 . . . . 1 Corrupted Parts 1 | . . . . . . . . . . . . . . . . . 1 . . . . . . . . . . System Corruption 1 | . . . . . . . . . . . . . . . . . 1 . . . . . . . . . . Parts Lost 31 | . . 5 4 2 1 1 . . . . . . 1 . 1 1 2 . . 2 . . 1 5 1 1 3 Power 2 | . . 1 . 1 . . . . . . . . . . . . . . . . . . . . . . . Propulsion 6 | . . 2 3 . . 1 . . . . . . . . . . . . . . . . . . . . . Utility 15 | . . 1 . 1 . . . . . . . . 1 . 1 1 . . . 1 . . . 5 1 1 2 Weapon 8 | . . 1 1 . 1 . . . . . . . . . . . 2 . . 1 . . 1 . . . 1 Highest Loss Streak 5 | . . 5 4 2 1 1 . . . . . . 1 . 1 1 2 . . 2 . . 1 3 1 1 2 To Critical Strikes 1 | . . . . . . . . . . . . . . . . . . . . . . . . 1 . . . Average Backups 18 | 5 7 14 14 14 14 17 19 20 17 17 16 17 18 21 22 23 20 23 24 22 20 23 22 22 20 18 15 Power . | 1 . 1 . . . . . . . . . . . . . . . . . . . . 1 1 . . . Propulsion 2 | 3 2 1 2 4 3 2 1 1 1 2 2 2 2 3 3 2 2 2 2 1 . 1 2 1 . . . Utility 11 | . . 5 6 6 6 7 6 6 7 7 9 9 9 12 13 16 15 18 19 16 17 18 17 13 12 11 8 Weapon 4 | 1 3 5 4 4 4 7 10 12 8 6 3 4 5 6 6 3 2 2 2 2 1 1 1 4 5 5 4 Tool/Special . | . . . . . . . . . . . . . . . . . . . . . . . . . . . . Unused Backups 83 | . 4 2 1 . 1 7 1 . 7 2 4 1 7 . 7 2 2 . . 5 4 2 1 6 9 . 8 Power 1 | . . . . . . . . . . . . . . . . . . . . . . . . . 1 . . Propulsion 16 | . . 1 . . . 2 1 . 1 . 1 . 3 . 1 1 . . . 1 1 . . 2 1 . . Utility 29 | . 2 1 1 . . 1 . . 1 . 1 1 2 . 2 1 1 . . 4 2 1 1 1 3 . 3 Weapon 35 | . 2 . . . 1 4 . . 5 2 2 . 2 . 4 . 1 . . . 1 1 . 2 4 . 4 Tool/Special 2 | . . . . . . . . . . . . . . . . . . . . . . . . 1 . . 1 Average Slot Usage (%) 62 | . 99 92 92 99 89 64 59 53 53 52 57 62 53 48 51 51 48 47 47 51 52 56 50 55 54 58 59 Engine 2 | . 13 4 7 10 10 5 . . . . . . . 2 1 . . . . . . . . . . . . Core 1 | . . . . . . 1 6 . 2 6 4 4 3 . . . . . . 4 2 . . . . . . Reactor 2 | . . . . . . . . 7 3 . 1 5 4 2 3 4 5 5 5 . 2 4 4 4 4 4 4 Treads 7 | . 26 32 25 31 25 . . . 3 6 4 . . . . . . . . . 1 . 2 . 3 4 2 Leg 1 | . . . . . . . . 7 2 . . . . 1 4 4 4 5 5 1 . 3 . 3 . . 1 Device 15 | . 14 8 11 11 10 16 16 23 15 18 22 22 18 13 11 13 10 15 15 17 13 18 21 18 16 19 19 Storage 6 | . 14 11 11 11 11 7 7 7 7 6 6 5 5 4 5 5 5 5 5 5 5 4 4 4 4 4 4 Processor 2 | . . . . . . . . . . 4 . . . . 4 5 9 5 5 5 5 4 . 2 4 4 7 Hackware 5 | . . 2 . . . 3 4 . . . 3 3 5 8 8 5 5 5 5 2 6 8 4 8 8 15 12 Protection 1 | . . 6 11 11 7 1 . . . . . 1 . . . . . . . . . . . 3 3 . . Energy Cannon 5 | . 17 22 12 8 11 7 1 . 3 . 5 5 5 4 2 . . . . 2 2 3 3 . 4 4 2 Ballistic Cannon 2 | . . . 8 11 5 . 6 7 3 6 . . . . 2 4 5 5 5 2 2 . . 3 . . 1 Special Weapon 2 | . . . . . . . . . . . 3 4 1 3 4 4 . . . 4 4 3 3 4 4 4 2 Peak Build Rating 203 | 7 20 21 17 26 45 64 80 78 84 90 99 120 131 151 167 168 158 143 135 156 150 178 177 187 192 197 203 Average Rating 114 | 6 9 13 15 16 28 57 64 74 77 85 87 115 121 139 160 163 150 135 135 143 142 168 168 182 183 193 194 On Entrance 104 | 6 7 20 14 16 26 45 55 74 78 83 88 99 119 129 151 167 158 136 135 135 141 150 165 174 179 177 197 Avg Prop Armor Cover (%) 9 | . 12 . 7 6 . 18 2 . . . . . . . . . . . . . . . . . . . . Naked Turns . | . . . . . . . . . . . . . . . . . . . . . . . . . . . . Heaviest Build 199 | 14 32 35 41 41 103 73 74 74 94 95 100 116 170 192 194 160 144 135 129 148 135 150 199 198 149 121 143 Greatest Support 319 | 40 40 60 63 60 88 88 117 117 173 173 173 136 195 206 260 304 304 304 304 304 201 319 319 218 139 139 211 Greatest Overweight (x) 5 | . 3 . 2 1 5 5 1 . 1 . . . . 1 . . . . . . 1 . 1 1 1 . . Average Overweight (x) . | . . . . . . . . . . . . . . . . . . . . . . . . . . . . Largest Inventory Capacity 25 | 8 15 15 15 15 25 20 20 20 20 20 20 20 25 25 25 25 25 25 25 25 25 25 25 25 25 20 20 Average Capacity 21 | 8 11 15 15 15 17 19 20 20 20 20 20 20 21 25 25 25 25 25 25 23 21 25 25 25 20 20 20 Most Carried 25 | 6 15 15 15 15 16 20 20 20 20 20 20 20 25 25 25 25 23 25 25 25 25 25 25 25 25 20 19 Average Carried 19 | 5 7 14 14 14 14 17 19 20 18 19 19 19 20 23 24 24 21 24 25 23 21 24 23 23 20 18 15 Final Capacity 25 | 8 15 15 15 15 15 20 20 20 20 20 20 20 25 25 25 25 25 25 25 20 25 25 25 25 20 20 20 Final Carried 25 | 3 15 15 15 15 14 19 20 20 19 20 20 18 25 24 23 22 23 25 25 20 25 25 25 25 20 18 11 Scrap Engine Consumption 146 | . . . . . 15 11 . . 9 2 7 . 12 4 17 3 4 4 . 7 8 13 4 13 4 1 8 Constructs Created 11 | . . . . . 4 . 3 . . . . . . 1 . 1 . . . 1 . . . 1 . . . Constructs Modified 193 | . . . . . 10 7 11 1 20 1 21 . 7 14 12 10 5 . . 13 5 11 17 20 2 2 4 Class Distribution -------------------- 45% | Botlord-Construct 18% | Construct 18% | Mutant 12% | Bothacker-Construct Dominant Class ---------------- Mutant | -10/Materials Mutant | -9/Materials Mutant | -9/Storage Mutant | -9/Garrison Mutant | -9/Recycling Construct | -7/Factory Construct | -7/Waste Construct | -7/Factory Bothacker-Construct | -7/Garrison Construct | -6/Factory Bothacker-Construct | -6/Garrison Bothacker-Construct | -5/Factory Construct | -5/Garrison Bothacker-Construct | -4/Factory Botlord-Construct | -4/Garrison Botlord-Construct | -4/Factory Construct | -4/Extension Botlord-Construct | -4/Cetus Botlord-Construct | -4/Archives Botlord-Construct | -4/Hub_04(d) Botlord-Construct | -4/Garrison Botlord-Construct | -3/Research Botlord-Construct | -3/Garrison Botlord-Construct | -2/Research Botlord-Construct | -2/Garrison Botlord-Construct | -1/Access Scavenger-Construct | -1/Command Resources | -11 -10 -9 -9 -9 -9 -7 -7 -7 -7 -6 -6 -5 -5 -4 -4 -4 -4 -4 -4 -4 -4 -3 -3 -2 -2 -1 -1 ----------- Run | Yrd Mat Mat Sto Gar Rec Fac Was Fac Gar Fac Gar Fac Gar Fac Gar Fac Ext Cet Arc Hub Gar Res Gar Res Gar Acc Com Matter Collected 18527 | 179 264 461 302 312 902 1103 355 . 407 294 847 238 254 1167 1692 820 1264 328 . 1411 889 1466 556 1262 995 190 569 Remotely . | . . . . . . . . . . . . . . . . . . . . . . . . . . . . Salvage Created 32639 | 109 767 949 650 251 687 728 1137 . 2093 269 1248 1021 1402 2920 1444 3656 1837 342 . 1222 785 1707 2208 1600 1192 1028 1387 Parts 1307 | 11 46 55 30 27 24 47 . . 76 20 56 30 55 121 71 159 71 12 . 49 27 57 78 71 31 49 34 Haulers Intercepted 18 | . 2 3 1 . . 1 . . . . . 1 . 2 . 4 . . . . . 3 . 1 . . . Recyclers Shooed 14 | 1 4 . 1 . . . . . . . . . . 2 . 4 . . . 1 . . . . . 1 . Parts Field Recycled . | . . . . . . . . . . . . . . . . . . . . . . . . . . . . Retrieved Matter . | . . . . . . . . . . . . . . . . . . . . . . . . . . . . Parts Self-Destructed . | . . . . . . . . . . . . . . . . . . . . . . . . . . . . Prevented . | . . . . . . . . . . . . . . . . . . . . . . . . . . . . Parts Restored 2 | . . . . . . . . . . . . . . 1 . . . . . . . . . 1 . . . Broken 2 | . . . . . . . . . . . . . . 1 . . . . . . . . . 1 . . . Kills | -11 -10 -9 -9 -9 -9 -7 -7 -7 -7 -6 -6 -5 -5 -4 -4 -4 -4 -4 -4 -4 -4 -3 -3 -2 -2 -1 -1 ------- Run | Yrd Mat Mat Sto Gar Rec Fac Was Fac Gar Fac Gar Fac Gar Fac Gar Fac Ext Cet Arc Hub Gar Res Gar Res Gar Acc Com Combat Hostiles Destroyed 513 | . 13 19 13 16 9 15 5 . 33 2 30 19 25 39 24 43 22 9 . 20 20 33 32 22 18 11 21 Melee 6 | . . . . . 1 . . . 1 . . 1 3 . . . . . . . . . . . . . . Guns 5 | . 2 . . . . 3 . . . . . . . . . . . . . . . . . . . . . Cannons 370 | . 6 14 3 4 8 3 1 . 24 2 24 8 13 26 22 37 18 9 . 18 16 29 20 21 17 11 16 AOE 100 | . 4 5 10 12 . 9 4 . 3 . 5 5 5 10 2 5 4 . . 2 4 . 6 . . . 5 Classes Destroyed 26 | 2 7 2 . . 3 1 2 . . . 1 1 1 1 1 1 . . . 1 . 2 . . . . . Worker 19 | . 1 . . . . 3 . . . 1 . . . 4 . 1 2 . . 2 . 1 . 3 . 1 . Builder 22 | . 1 . . . . 1 . . . 4 . 1 . 2 . 6 2 . . . . 4 . 1 . . . Tunneler 12 | 3 . 1 . . . . . . . . . 1 . . . . 4 . . 1 . 1 . 1 . . . Hauler 18 | . 2 3 1 . . 1 . . . . . 1 . 2 . 4 . . . . . 3 . 1 . . . Recycler 36 | 1 3 2 4 . 3 2 . . . . . . . 4 . 2 4 . . 3 . 1 . 3 . 3 1 Mechanic 2 | . . . . . . . . . . . . . . 2 . . . . . . . . . . . . . Operator 8 | . 1 1 . . . . . . . . . 1 . 1 . 1 . . . . . 1 . 2 . . . Watcher 23 | . 2 3 . . . . . . . 1 . 1 . 2 1 4 1 . . 3 . 2 . 2 1 . . Swarmer 108 | . 3 10 4 8 . 8 . . 11 . 10 5 5 2 7 4 3 . . 3 4 1 8 3 2 . 7 Cutter 1 | . . . . . . . . . . . . 1 . . . . . . . . . . . . . . . Saboteur 3 | . . . . . . . . . . . . . . . . . . . . 1 . . 2 . . . . Grunt 147 | . 10 6 5 5 . 4 . . 15 2 13 7 6 4 8 9 5 . . 5 9 9 7 3 8 4 3 Brawler 9 | . . 1 1 . . . . . 1 . . 1 1 . . 3 . . . . . . 1 . . . . Duelist 15 | . . . . . . . 1 . 1 . . 2 1 . . 2 2 . . 1 1 . 4 . . . . Protector 2 | . . . . . 1 . . . . . . . . 1 . . . . . . . . . . . . . Sentry 70 | . . 2 3 3 4 2 . . 5 . . 2 6 5 3 6 4 . . 4 . 6 8 2 3 1 1 Demolisher 4 | . . . . . . . . . . . . . . . . . . . . . . 3 . . . . 1 Specialist 15 | . . . . . . . . . . . 7 . . 2 2 . 4 . . . . . . . . . . Hunter 61 | . . . . . 1 . . . . . 1 1 . 17 . 13 2 . . 1 2 8 4 5 4 . 2 Programmer 49 | . . . . . . 1 . . . . . 1 5 8 2 4 . . . 4 3 2 3 8 . 6 2 Heavy 3 | . . . . . . . . . . . . . . . . 1 . . . 1 . . . . . . 1 Behemoth 9 | . . . . . . . . . . . . . 1 . 1 1 2 . . . 1 1 . 1 1 . . Compactor 5 | . . . . . . . 5 . . . . . . . . . . . . . . . . . . . . Cetus Guard 8 | . . . . . . . . . . . . . . . . . . 8 . . . . . . . . . M Guard 1 | . . . . . . . . . . . . . . . . . . . . . . . . . . . 1 Enhanced Grunt 1 | . . . . . . . . . . . . . . . . . . 1 . . . . . . . . . Combat Programmer 2 | . . . . . . . . . . . . . . . . . . . . . . . . . . . 2 Striker 3 | . . . . . . . . . . . . . . . . . . . . . . 3 . . . . . Executioner 2 | . . . . . . . . . . . . . . . 2 . . . . . . . . . . . . Scrapper 3 | . . . . . 3 . . . . . . . . . . . . . . . . . . . . . . Thug 3 | . . . . . . . . . . . . . . . . . 2 . . . . . 1 . . . . Savage 1 | . . . . . . . . . . . . . . 1 . . . . . . . . . . . . . Best Kill Streak 23 | 2 4 5 7 10 3 9 4 . 9 6 7 8 10 23 7 16 8 4 . 9 6 8 14 5 3 10 5 Combat Bots Only 14 | . 4 5 7 10 2 4 4 . 9 2 7 7 10 14 7 5 4 4 . 5 6 8 14 4 3 6 5 Max Kills in Single Turn 5 | 1 3 3 4 3 1 3 1 . 2 3 2 3 4 4 2 3 4 1 . 1 4 1 5 2 1 1 3 Gunslinging . | . . . . . . . . . . . . . . . . . . . . . . . . . . . . Exploded 4 | . 3 3 4 3 . 3 1 . 2 . 2 2 4 3 1 3 2 . . 1 4 . 2 . . . 3 Melee 1 | . . . . . 1 . . . 1 . . 1 1 . . . . . . . . . . . . . . Uniques/NPCs Destroyed 2 | . . . . . . . . . . . . . . . . . . . . . . . . . . . 2 MAIN.C Shell (-1/Command) MAIN.C (-1/Command) Combat | -11 -10 -9 -9 -9 -9 -7 -7 -7 -7 -6 -6 -5 -5 -4 -4 -4 -4 -4 -4 -4 -4 -3 -3 -2 -2 -1 -1 -------- Run | Yrd Mat Mat Sto Gar Rec Fac Was Fac Gar Fac Gar Fac Gar Fac Gar Fac Ext Cet Arc Hub Gar Res Gar Res Gar Acc Com Hostile Shots Fired 2473 | . 44 85 87 34 44 92 . . 186 12 94 29 119 221 96 254 167 11 . 82 150 80 126 206 88 30 136 Missed 847 | . 7 18 27 9 11 30 . . 68 3 29 15 41 87 33 107 67 4 . 14 57 29 43 76 27 9 36 Hits 1626 | . 37 67 60 25 33 62 . . 118 9 65 14 78 134 63 147 100 7 . 68 93 51 83 130 61 21 100 Melee 7 | . . 2 1 . . . . . . . . . . . . 1 . . . . . . 3 . . . . Projectile 1619 | . 37 65 59 25 33 62 . . 118 9 65 14 78 134 63 146 100 7 . 68 93 51 80 130 61 21 100 AOE 21 | . . . . . . . . . . . . . . . . . . . . . . 6 . . . . 15 Critical Strikes 60 | . . 1 2 . 4 . . . 1 . 1 2 2 4 1 8 2 3 . 2 3 3 5 8 2 . 6 Part Disruptions 1 | . . . . . . . . . . . . . . 1 . . . . . . . . . . . . . Damage Taken 27002 | . 487 804 781 267 633 635 . . 1360 218 927 180 1010 1611 1030 2507 1567 109 . 1760 1175 953 1492 3045 1352 266 2833 Core 2059 | . 69 119 78 26 102 65 . . 78 64 24 24 78 103 57 115 90 15 . 64 99 43 123 390 135 . 98 Absorbed by Shields 8498 | . . . . . 44 200 . . 336 16 228 185 844 892 416 717 . 103 . 45 610 751 626 218 200 251 1816 Reduced by Siege Mode 264 | . . . . . . . . . . . . . . . . . 30 . . . . . . . 13 . 221 Redirected to Shielding 22 | . . 22 . . . . . . . . . . . . . . . . . . . . . . . . . Ignored by Resistances 76 | . . . . . . . . . . . . . . . . . . . . . 54 . . . . . 22 Regen/Repaired (Parts) 15906 | . . . . . 190 64 141 . 748 . 963 . 360 1093 1118 1582 1530 . . 1696 930 1010 1024 1665 338 423 1031 Core Remaining (%) 85 | 100 72 . . . 68 . . . 81 . 90 . 96 . . . . . . . 73 . 87 . 94 . 94 Volleys Fired 1900 | 11 59 47 27 41 21 28 22 . 101 21 90 52 71 115 109 169 56 25 . 83 73 212 104 92 87 44 140 Largest 3 | 2 2 3 2 2 2 2 1 . 1 1 1 1 1 2 1 1 1 1 . 1 1 1 2 1 1 1 2 Hottest 259 | 90 120 180 93 93 120 122 122 . 259 246 246 59 67 154 75 161 161 161 . 161 105 74 180 180 112 112 211 Shots Fired 2082 | 22 99 113 46 51 42 45 24 . 97 21 90 52 71 116 109 168 55 25 . 83 72 212 103 92 85 44 145 Gun 103 | 22 63 . . . . 17 . . . . . . . 1 . . . . . . . . . . . . . Cannon 1579 | . 25 109 39 41 42 24 8 . 95 14 76 35 57 79 76 131 52 25 . 70 48 175 77 61 74 36 110 Launcher 101 | . 11 4 7 10 . 4 16 . 2 . 4 2 3 14 1 7 1 . . 4 3 . 6 . . . 2 Special 299 | . . . . . . . . . . 7 10 15 11 22 32 30 2 . . 9 21 37 20 31 11 8 33 Kinetic 802 | . . . 19 27 18 24 8 . 62 14 67 . . 54 76 131 52 . . 6 35 34 4 40 74 . 57 Thermal 798 | 22 88 109 20 14 24 17 . . 15 . . . 37 26 . . . 25 . 64 13 141 73 21 . 36 53 Explosive 76 | . 11 4 7 10 . 4 16 . 2 . 4 2 3 9 1 . 1 . . . . . . . . . 2 Electromagnetic 107 | . . . . . . . . . 18 . 9 35 20 5 . 7 . . . 4 3 . 6 . . . . Robot Hit Streak 28 | 8 7 9 15 15 12 21 10 . 9 10 28 12 25 14 20 10 18 15 . 11 15 11 13 16 9 10 28 Robot Miss Streak 5 | 2 3 3 1 1 2 2 2 . 2 1 3 1 1 2 3 5 5 2 . 2 3 4 4 2 2 5 3 Penetration Max 3 | . . . . . . . . . . 3 2 . . . . . 1 . . . . . . 1 . . . Secondary Targets 1 | . 1 . . . . . . . . . . . . . . . . . . . . . . . . . . Max Gunslinging Chain 1 | . 1 . . . . . . . . . . . . . . . . . . . . . . . . . . Capacitor 2 | . . . . . . . . . . . . . . 2 . . . . . . . . . . . . . Shots Hit Robots 1440 | 16 54 59 33 23 28 36 13 . 127 17 62 46 60 74 62 109 39 21 . 55 36 135 77 68 51 25 114 Core Hits 795 | 5 34 36 23 24 16 33 13 . 52 9 33 18 20 85 27 69 35 9 . 19 21 32 91 25 15 9 42 Critical Kills 12 | . . . . . 1 . . . 1 . . 1 1 . . . 5 . . . . 3 . . . . . Critical Parts Destroyed 10 | . . . . . . . . . . . . 2 1 . . 1 5 . . 1 . . . . . . . Critical Strikes 42 | . 4 . 2 . 3 1 . . 5 . . 4 3 2 1 1 12 . . 1 . 3 . . . . . Burn 4 | . 4 . . . . . . . . . . . . . . . . . . . . . . . . . . Meltdown 3 | . . . . . . . . . . . . . . . . . . . . . . 3 . . . . . Destroy 20 | . . . . . . . . . 1 . . 3 2 . . 1 12 . . 1 . . . . . . . Blast 7 | . . . 2 . 2 . . . . . . . . 2 1 . . . . . . . . . . . . Corrupt 1 | . . . . . . . . . 1 . . . . . . . . . . . . . . . . . . Smash 1 | . . . . . 1 . . . . . . . . . . . . . . . . . . . . . . Sever 6 | . . . . . . 1 . . 3 . . 1 1 . . . . . . . . . . . . . . Melee Attacks 97 | . . . . . 5 5 . . 67 4 1 6 9 . . . . . . . . . . . . . . Impact 32 | . . . . . 5 . . . 24 3 . . . . . . . . . . . . . . . . . Slashing 65 | . . . . . . 5 . . 43 1 1 6 9 . . . . . . . . . . . . . . Piercing . | . . . . . . . . . . . . . . . . . . . . . . . . . . . . Sneak Attacks 5 | . . . . . 1 2 . . 1 1 . . . . . . . . . . . . . . . . . Combat Hostiles . | . . . . . . . . . . . . . . . . . . . . . . . . . . . . Follow-up Attacks . | . . . . . . . . . . . . . . . . . . . . . . . . . . . . Damage Inflicted 139870 | 155 1223 1436 1252 1049 665 1765 2455 . 6514 1159 5347 2869 4609 10923 7425 14586 7903 3251 . 8244 3780 13698 8695 7055 7135 4511 12166 Guns 955 | 155 546 . . . . 254 . . . . . . . . . . . . . . . . . . . . . Cannons 115045 | . 230 1155 649 381 485 464 360 . 3095 1017 4073 1881 3763 6119 6783 13169 6839 3251 . 7987 3573 13599 6410 6781 7135 4461 11385 Explosions 19151 | . 418 279 603 668 . 870 2095 . 244 75 1274 921 553 4750 587 1340 961 . . 240 207 . 2285 . . . 781 Melee 3926 | . . . . . 153 177 . . 3175 61 . 67 293 . . . . . . . . . . . . . . Ramming 793 | . 29 2 . . 27 . . . . 6 . . . 54 55 77 103 . . 17 . 99 . 274 . 50 . Kinetic 63677 | . . . 390 215 254 464 360 . 1946 1017 3703 . . 4477 6783 13169 6839 . . 121 3233 2004 284 3495 7135 . 7788 Thermal 51484 | 155 776 1155 259 166 231 297 . . 540 75 419 146 3043 1904 37 448 698 3251 . 7938 421 11595 6586 3286 . 4461 3597 Explosive 12567 | . 418 279 603 668 . 827 2095 . 244 . 855 775 385 3824 550 . 263 . . . . . . . . . 781 Electromagnetic 7423 | . . . . . . . . . 609 . 370 1881 888 664 . 892 . . . 168 126 . 1825 . . . . Impact 426 | . . . . . 153 . . . 273 . . . . . . . . . . . . . . . . . . Slashing 3500 | . . . . . . 177 . . 2902 61 . 67 293 . . . . . . . . . . . . . . Piercing . | . . . . . . . . . . . . . . . . . . . . . . . . . . . . Highest Corruption 21 | . . 5 7 7 . 16 16 16 16 . 1 . 2 9 9 21 21 7 7 8 11 16 17 17 19 1 4 Average Corruption 8 | . . 5 6 7 . 10 16 16 16 . 1 . 1 6 5 5 19 7 7 7 1 7 8 12 18 1 2 Corruption Purged 17 | . . . . . . . . . . . . . . . . . 10 . . . . . . 7 . . . Corruption Blocked . | . . . . . . . . . . . . . . . . . . . . . . . . . . . . Effects 409 | . . 14 10 6 . 8 30 . 27 . 1 . 7 27 23 20 38 3 1 31 5 36 19 49 44 1 9 Message Errors 103 | . . 3 2 1 . . 10 . 10 . 1 . . 8 5 2 12 2 . 10 2 9 5 6 14 . 1 Matter Fused 106 | . . 6 3 2 . 1 7 . 4 . . . 2 7 9 11 11 . . 6 . 10 5 11 10 . 1 Heat Flow Errors 52 | . . . 1 1 . 2 6 . 4 . . . 3 3 4 . 4 1 . 3 1 3 2 7 4 1 2 Energy Discharges 38 | . . . 1 . . . 2 . 2 . . . 1 3 1 3 3 . . 4 1 3 2 6 4 . 2 Parts Rejected 5 | . . . . 1 . . . . . . . . . . . 1 2 . . . . . . 1 . . . Parts Fused 5 | . . . . . . . . . . . . . . . 1 . 1 . . . . 2 . 1 . . . Data Loss (minor) 49 | . . 4 1 1 . 2 2 . . . . . 1 3 3 1 2 . . 5 . 6 1 10 6 . 1 Data Loss (major) 22 | . . . . . . . . . 2 . . . . 3 . . 2 . . 3 . 3 1 4 4 . . Misfires 4 | . . 1 1 . . . 2 . . . . . . . . . . . . . . . . . . . . Alerts 5 | . . . . . . 1 1 . . . . . . . . . . . 1 . . . . 1 . . 1 Misdirections 5 | . . . . . . . . . 1 . . . . . . 1 . . . . . . 1 2 . . . Weapon Failures 15 | . . . 1 . . 2 . . 4 . . . . . . 1 1 . . . 1 . 2 . 2 . 1 Overload Shots . | . . . . . . . . . . . . . . . . . . . . . . . . . . . . Overflow Damage 18936 | . 18 . 1 3 . 86 . . 363 105 427 291 248 1394 1807 2155 1157 88 . 2341 351 2298 716 1530 968 1569 1020 Projectiles 18019 | . . . 1 . . . . . 179 105 364 184 202 1209 1807 2041 1157 88 . 2341 351 2276 716 1473 968 1569 988 Explosions 512 | . 18 . . 3 . 9 . . . . 63 107 5 161 . 114 . . . . . . . . . . 32 Melee 405 | . . . . . . 77 . . 184 . . . 41 24 . . . . . . . 22 . 57 . . . Knockbacks 170 | . . . 1 1 3 3 1 . 28 3 30 . . 6 18 23 13 . . . 3 8 . 12 12 . 5 Impact 6 | . . . . . . . . . 2 . . . . . . 1 1 . . . . 1 . 1 . . . Kinetic 144 | . . . 1 1 3 3 1 . 25 2 25 . . 6 15 20 10 . . . 3 6 . 8 10 . 5 Secondary 20 | . . . . . . . . . 1 1 5 . . . 3 2 2 . . . . 1 . 3 2 . . Self-Inflicted Damage 794 | . 63 . 31 . . 92 . . . . . 77 78 102 25 22 . . . 19 . . 285 . . . . Shots 36 | . 3 . 1 . . 1 . . . . . 2 2 2 1 2 . . . 1 . . 21 . . . . Rammed 15 | . 6 2 . . 2 . . . . 1 . . . . . . . . . 2 . . . . . 2 . Targets Rammed 43 | . 7 2 . . 5 . . . . 1 . . . 1 3 5 3 . . 2 . 3 . 9 . 2 . Kicked 25 | . . . . . 1 . . . . . . . . 1 3 5 3 . . . . 3 . 9 . . . Crushed 3 | . 1 . . . 2 . . . . . . . . . . . . . . . . . . . . . . Highest Temperature 545 | 240 318 527 181 259 453 448 325 . 502 411 419 43 301 371 343 482 425 380 . 452 405 348 400 545 358 358 314 Average Temperature 129 | 101 103 115 107 59 146 77 155 . 135 191 147 14 90 70 96 178 177 181 . 143 129 95 163 176 103 104 89 Received Heat Transfer 4038 | . 222 342 321 66 297 132 . . 465 18 180 29 349 169 123 134 204 . . 208 123 53 115 78 128 4 278 Effects 86 | . 2 6 . . 2 2 . . 4 2 4 . 2 . 1 20 7 3 . 2 6 . . 17 3 . 3 Shutdowns 15 | . . . . . 1 . . . 1 . 1 . . . . 6 1 . . . . . . 5 . . . Energy Bleed 9 | . . 1 . . 1 . . . . 1 . . . . . 2 1 . . . 1 . . 1 . . 1 Interference 42 | . 2 5 . . . . . . . 1 2 . 2 . 1 8 3 2 . . 5 . . 6 3 . 2 Matter Decay 7 | . . . . . . . . . 2 . . . . . . 2 . 1 . . . . . 2 . . . Short Circuit 10 | . . . . . . 1 . . 1 . 1 . . . . 2 2 . . 2 . . . 1 . . . Damage (minor) 2 | . . . . . . 1 . . . . . . . . . . . . . . . . . 1 . . . Damage (core) 1 | . . . . . . . . . . . . . . . . . . . . . . . . 1 . . . Siege Activations 5 | . . . . . . . . . . . . . . . . . 2 . . . . . . . 2 . 1 Total Turns 136 | . . . . . . . . . . . . . . . . . 17 . . . . . . . 58 . 61 Longest Duration 61 | . . . . . . . . . . . . . . . . . 11 . . . . . . . 46 . 61 Martial Activations 1 | . . . . . . . . . . . . . . . . . 1 . . . . . . . . . . Total Turns 126 | . . . . . . . . . . . . . . . . . 126 . . . . . . . . . . Longest Duration 126 | . . . . . . . . . . . . . . . . . 126 . . . . . . . . . . Shielding Activations . | . . . . . . . . . . . . . . . . . . . . . . . . . . . . Robots Disrupted 2 | . . . . . . . . . . . . . . 2 . . . . . . . . . . . . . Combat Hostiles 2 | . . . . . . . . . . . . . . 2 . . . . . . . . . . . . . Robots Corrupted 29 | . . . . . . . . . 3 . 1 5 4 3 . 1 . . . . . . 7 4 1 . . Combat Hostiles 25 | . . . . . . . . . 3 . 1 5 4 3 . 1 . . . . . . 6 1 1 . . Parts Fried 57 | . . . . . . . . . 5 . 3 11 5 4 . 6 2 1 . . . . 18 2 . . . Impact Corruptions 18 | . . . . . . . . . 2 . . . . 1 2 1 1 . . . . 2 . 7 2 . . Robots Melted 5 | . 1 . . . . . . . . . . . . . . . . . . . . 4 . . . . . Combat Hostiles 5 | . 1 . . . . . . . . . . . . . . . . . . . . 4 . . . . . Parts Melted 25 | 1 5 5 . . 2 4 . . 2 . . . . . . . 1 . . . 2 2 . . . 1 . Heat Transferred 16355 | 409 2405 2368 518 333 385 587 . . . 100 400 200 87 150 50 350 300 . . 50 161 3556 2447 . . 795 704 Parts Sabotaged 3 | . . . . . . . . . . . . . . . . . . . . . . . 3 . . . . Parts Stolen . | . . . . . . . . . . . . . . . . . . . . . . . . . . . . Parts Stripped . | . . . . . . . . . . . . . . . . . . . . . . . . . . . . Power Chain Reactions 22 | . . . . . . . . . . 1 3 1 2 2 1 3 2 . . 1 2 1 3 . . . . Alert | -11 -10 -9 -9 -9 -9 -7 -7 -7 -7 -6 -6 -5 -5 -4 -4 -4 -4 -4 -4 -4 -4 -3 -3 -2 -2 -1 -1 ------- Run | Yrd Mat Mat Sto Gar Rec Fac Was Fac Gar Fac Gar Fac Gar Fac Gar Fac Ext Cet Arc Hub Gar Res Gar Res Gar Acc Com Maximum Alert Level 4 | . . . 2 3 1 1 . . 3 2 4 3 4 2 4 3 2 1 . 1 2 3 4 3 2 2 4 Low Security (%) 35 | 100 100 100 79 . 60 97 100 100 13 70 6 . . 43 . 11 . . 100 43 2 6 . 65 37 . . Level 1 23 | . . . 15 28 39 2 . . 15 17 9 . . 13 14 22 47 100 . 56 17 54 . 32 39 95 11 Level 2 19 | . . . 5 26 . . . . 20 12 10 42 19 43 14 51 52 . . . 80 33 22 . 23 4 17 Level 3 13 | . . . . 44 . . . . 50 . 34 57 46 . 16 14 . . . . . 4 35 1 . . 63 Level 4 8 | . . . . . . . . . . . 39 . 34 . 54 . . . . . . . 41 . . . 7 Level 5 . | . . . . . . . . . . . . . . . . . . . . . . . . . . . . High Security . | . . . . . . . . . . . . . . . . . . . . . . . . . . . . Max Security . | . . . . . . . . . . . . . . . . . . . . . . . . . . . . Peak Influence 1450 | 5 172 183 438 786 383 297 101 . 1045 548 1437 947 1249 662 1450 783 482 352 134 300 683 763 1285 722 483 409 1011 Initial 760 | . . 31 25 284 353 100 101 . . 548 91 753 486 646 349 760 381 252 134 39 135 384 565 722 58 289 256 Average 424 | 2 89 104 94 584 159 98 10 . 621 225 907 729 995 322 1003 492 402 299 126 163 532 382 956 153 271 280 735 Influence Increases 18502 | 20 519 577 590 522 294 699 39 . 1085 181 1346 680 835 943 1291 1274 517 195 . 660 668 1665 810 722 455 432 1483 Destroy 0b10 Robot/C 8701 | . 260 380 260 320 100 300 . . 660 60 790 315 360 504 540 552 276 108 . 288 300 516 468 372 252 168 552 Destroy 0b10 Robot/NC 651 | 20 50 50 25 . 25 35 . . 35 30 . 24 . 60 6 60 42 6 . 30 . 42 9 48 3 27 24 Destroy Leader 1176 | . 68 92 62 20 . 52 . . 30 12 28 76 16 110 30 106 22 . . 72 30 94 24 94 18 40 80 Allied During Kill 1963 | . . . . . . . . . . 1 114 24 28 56 412 43 19 44 . 67 37 223 123 57 25 130 560 Trap Triggered on 0b10 8 | . . . . . . . . . . . . 8 . . . . . . . . . . . . . . . Successful Hack 360 | . 32 34 5 28 19 21 . . . 16 20 27 . 10 14 4 . . . 3 . 98 14 . . 15 . Select Force Hacks 120 | . 60 . . . 30 . . . . . . . . . . . . . . 30 . . . . . . . Disable Machine 627 | . . . . . 15 60 . . 30 15 42 48 21 27 9 189 18 9 . . 27 . . 9 27 18 63 Anti-Garrison Action 1199 | . . . . 50 . . . . 200 . 175 . 174 . 150 90 . . . 90 120 . 90 . 60 . . Destroy Structure 2108 | . 49 21 26 44 1 71 39 . 40 17 102 110 188 158 130 176 140 28 . 80 154 110 64 88 52 34 186 Advance Influence 100 | . . . . . . 100 . . . . . . . . . . . . . . . . . . . . . Partial Spotted 30 | . . . . . . . . . . . . 12 . 9 . . . . . . . . . 9 . . . Lose Combat Pursuer 588 | . . . . 60 . 60 . . 90 30 75 36 48 9 . 54 . . . . . 27 18 45 18 . 18 Miscellaneous 871 | . . . 212 . 104 . . . . . . . . . . . . . . . . 555 . . . . . Influence Decreases 17363 | 20 445 591 212 174 1080 408 330 . 40 1096 39 1422 299 1675 340 1945 844 310 223 580 179 1594 279 1929 50 514 745 Entered New Map 6054 | . . 43 35 154 433 . 190 . . 497 39 684 209 585 150 690 398 200 203 75 59 299 189 563 20 194 145 Time Decay 6118 | 20 445 498 137 . 577 398 80 . . 294 . 198 . 410 . 550 386 110 20 354 . 595 . 466 . 230 350 Lost Part 294 | . . 50 40 20 10 10 . . . . . . 10 . 10 10 20 . . 4 . . 10 50 10 10 30 Lost Ally 1797 | . . . . . 60 . 60 . 40 30 . 40 80 130 180 170 40 . . 147 120 100 80 200 20 80 220 Purge Threat 3100 | . . . . . . . . . . 275 . 500 . 550 . 525 . . . . . 600 . 650 . . . Squads Dispatched 84 | . 5 1 2 . 1 2 . . . 2 . 7 . 11 . 15 3 . . 8 . 15 . 6 . 2 4 Investigation 14 | . 3 . . . . 1 . . . 1 . 4 . . . 1 . . . 2 . 2 . . . . . Extermination 16 | . . . . . . 1 . . . . . 1 . 3 . 2 . . . 2 . . . 4 . 1 2 Reinforcement 39 | . 2 1 . . . . . . . 1 . 2 . 8 . 5 2 . . 2 . 13 . 2 . 1 . Assault 11 | . . . . . 1 . . . . . . . . . . 5 1 . . 2 . . . . . . 2 Garrison 4 | . . . 2 . . . . . . . . . . . . 2 . . . . . . . . . . . Intercept . | . . . . . . . . . . . . . . . . . . . . . . . . . . . . Searches Triggered . | . . . . . . . . . . . . . . . . . . . . . . . . . . . . Construction Impeded 7 | . . . . . . . . . . . . 1 . 3 . 1 . . . . . 2 . . . . . Haulers Reinforced 5 | . . . . . . . . . . . . 1 . . . . . . . . . 1 . 2 . 1 . Active Scanning Responses . | . . . . . . . . . . . . . . . . . . . . . . . . . . . . Cargo Convoy Interrupts 2 | . . . . . . . . . . . . . . 1 . 1 . . . . . . . . . . . Stealth | -11 -10 -9 -9 -9 -9 -7 -7 -7 -7 -6 -6 -5 -5 -4 -4 -4 -4 -4 -4 -4 -4 -3 -3 -2 -2 -1 -1 --------- Run | Yrd Mat Mat Sto Gar Rec Fac Was Fac Gar Fac Gar Fac Gar Fac Gar Fac Ext Cet Arc Hub Gar Res Gar Res Gar Acc Com Distress Signals 43 | . 1 2 2 . 1 . 1 . . . . . . 5 1 4 . 2 . 1 . 6 . 1 . 3 13 Communications Jammed 69 | . . . . . . . . . . . . . . . . . . . . 1 . 32 . 34 2 . . Distress Signals 68 | . . . . . . . . . . . . . . . . . . . . . . 32 . 34 2 . . Times Spotted 850 | . 15 23 20 15 8 15 6 . 38 8 48 35 36 69 63 77 28 12 . 35 35 65 54 47 29 22 47 Peak Tracking Total 13 | . 3 5 9 6 3 5 5 . 6 4 7 6 12 12 7 6 6 5 . 9 5 6 13 8 6 5 8 Tactical Retreats 36 | . . . . 2 . 1 1 . 6 1 4 2 2 1 . 3 . . . . . 3 2 4 2 . 2 Traps | -11 -10 -9 -9 -9 -9 -7 -7 -7 -7 -6 -6 -5 -5 -4 -4 -4 -4 -4 -4 -4 -4 -3 -3 -2 -2 -1 -1 ------- Run | Yrd Mat Mat Sto Gar Rec Fac Was Fac Gar Fac Gar Fac Gar Fac Gar Fac Ext Cet Arc Hub Gar Res Gar Res Gar Acc Com Traps Triggered 34 | . 3 . 1 2 . 1 . . 4 1 2 . 4 1 2 1 . . . 1 6 . 1 3 1 . . Indirectly 1 | . . . . . . . . . . . . . . . . . . . . 1 . . . . . . . Trap Hack Attempts . | . . . . . . . . . . . . . . . . . . . . . . . . . . . . Triggered . | . . . . . . . . . . . . . . . . . . . . . . . . . . . . Disarmed . | . . . . . . . . . . . . . . . . . . . . . . . . . . . . Reprogrammed . | . . . . . . . . . . . . . . . . . . . . . . . . . . . . Reused . | . . . . . . . . . . . . . . . . . . . . . . . . . . . . Traps Extracted . | . . . . . . . . . . . . . . . . . . . . . . . . . . . . Installed 2 | . . . . . . . . . . . . 2 . . . . . . . . . . . . . . . Triggered 1 | . . . . . . . . . . . . 1 . . . . . . . . . . . . . . . Machines | -11 -10 -9 -9 -9 -9 -7 -7 -7 -7 -6 -6 -5 -5 -4 -4 -4 -4 -4 -4 -4 -4 -3 -3 -2 -2 -1 -1 ---------- Run | Yrd Mat Mat Sto Gar Rec Fac Was Fac Gar Fac Gar Fac Gar Fac Gar Fac Ext Cet Arc Hub Gar Res Gar Res Gar Acc Com Machines Disabled 92 | . . . . 1 2 4 . . 5 1 5 4 8 3 6 22 3 1 . 1 8 . 3 1 5 2 7 Max in Single Turn 10 | . . . . 1 1 3 . . 1 1 1 2 2 1 1 10 2 1 . 1 1 . 1 1 1 1 1 Garrison Access 9 | . . . . . . 1 . . . . . . . . . 3 . . . 1 . 1 . 2 . 1 . Garrison Relay 23 | . . . . 1 . . . . 3 . 2 . 3 . 4 . . . . . 4 . 4 . 2 . . Phase Generator 4 | . . . . . . . . . 1 . . . 1 . 1 . . . . . . . . . 1 . . Network Hub 3 | . . . . . . . . . . . . . . . . . . . . 3 . . . . . . . Energy Cycler 1 | . . . . . . . . . . . . . . . . . 1 . . . . . . . . . . Machines Repaired . | . . . . . . . . . . . . . . . . . . . . . . . . . . . . Machines Dismantled . | . . . . . . . . . . . . . . . . . . . . . . . . . . . . Machines Sabotaged 1 | . . . . . . . . . . . . . . . . . . . . 1 . . . . . . . Overloaded Fab Kills . | . . . . . . . . . . . . . . . . . . . . . . . . . . . . Hacking | -11 -10 -9 -9 -9 -9 -7 -7 -7 -7 -6 -6 -5 -5 -4 -4 -4 -4 -4 -4 -4 -4 -3 -3 -2 -2 -1 -1 --------- Run | Yrd Mat Mat Sto Gar Rec Fac Was Fac Gar Fac Gar Fac Gar Fac Gar Fac Ext Cet Arc Hub Gar Res Gar Res Gar Acc Com Machines Accessed 100 | . 10 7 3 2 9 9 . 1 4 3 4 8 1 3 2 6 1 1 . 3 . 10 2 8 1 2 . Terminals 57 | . 7 6 2 2 5 5 . . 4 1 4 3 1 1 2 2 1 1 . 2 . 2 2 2 1 1 . Fabricators 10 | . . . . . . 2 . . . . . 2 . . . 2 . . . . . 1 . 3 . . . Repair Stations 3 | . 1 . . . . . . . . . . . . . . . . . . . . 2 . . . . . Recycling Units 6 | . 2 . . . 3 1 . . . . . . . . . . . . . . . . . . . . . Scanalyzers 8 | . . 1 . . . . . . . 1 . 2 . 1 . . . . . . . 3 . . . . . Garrison Access 15 | . . . 1 . . 1 . 1 . 1 . 1 . 1 . 2 . . . 1 . 2 . 3 . 1 . Total Hacks 243 | . 28 23 4 3 20 19 . 1 8 4 7 19 2 5 3 12 2 1 . 6 . 49 3 17 2 5 . Successful 115 | . 13 12 3 2 14 8 . 1 1 2 2 9 . 4 2 7 . . . 3 . 21 2 6 1 2 . Failed 128 | . 15 11 1 1 6 11 . . 7 2 5 10 2 1 1 5 2 1 . 3 . 28 1 11 1 3 . Catastrophic 26 | . 1 . . . . . . . 2 1 2 5 1 . 1 1 . 1 . 1 . 4 1 4 . 1 . Database Lockouts . | . . . . . . . . . . . . . . . . . . . . . . . . . . . . Manual 119 | . 26 19 2 . 17 11 . . . . . 6 . 2 . 5 . 1 . 5 . 15 . 6 . 4 . Terminals 139 | . 22 20 3 3 11 12 . . 8 2 7 6 2 2 3 5 2 1 . 4 . 12 3 5 2 4 . Fabricators 29 | . . . . . . 3 . . . . . 5 . . . 5 . . . . . 7 . 9 . . . Repair Stations 13 | . 4 . . . . . . . . . . . . . . . . . . . . 9 . . . . . Recycling Units 12 | . 2 . . . 7 3 . . . . . . . . . . . . . . . . . . . . . Scanalyzers 30 | . . 3 . . . . . . . 1 . 7 . 2 . . . . . . . 17 . . . . . Garrison Access 18 | . . . 1 . . 1 . 1 . 1 . 1 . 1 . 2 . . . 2 . 4 . 3 . 1 . Terminal Hacks 35 | . 6 3 1 2 3 4 . . 1 1 2 . . . 2 1 . . . . . 5 2 1 1 . . Part Schematic 1 | . 1 . . . . . . . . . . . . . . . . . . . . . . . . . . Robot Schematic 1 | . . . . . . 1 . . . . . . . . . . . . . . . . . . . . . Robot Analysis 7 | . 5 1 . . 1 . . . . . . . . . . . . . . . . . . . . . . Prototype ID Bank 1 | . . . . . . . . . . . . . . . . . . . . . . 1 . . . . . Open Door 3 | . . . . . . . . . . . 1 . . . 1 . . . . . . . 1 . . . . Branch Access Points 1 | . . . . . . . . . . 1 . . . . . . . . . . . . . . . . . Emergency Access Points 3 | . . . . 1 . . . . 1 . 1 . . . . . . . . . . . . . . . . Terminal Index 1 | . . 1 . . . . . . . . . . . . . . . . . . . . . . . . . Fabricator Index 1 | . . . . . . . . . . . . . . . . . . . . . . 1 . . . . . Scanalyzer Index 2 | . . . . . . 1 . . . . . . . . . . . . . . . 1 . . . . . Unreport Threat 3 | . . . . . . . . . . . . . . . . 1 . . . . . 1 . 1 . . . Locate Traps 3 | . . 1 1 . . 1 . . . . . . . . . . . . . . . . . . . . . Hauler Manifests 1 | . . . . . . . . . . . . . . . . . . . . . . 1 . . . . . Registered Components 1 | . . . . . . 1 . . . . . . . . . . . . . . . . . . . . . Garrison Registry 3 | . . . . 1 . . . . . . . . . . 1 . . . . . . . . . 1 . . Patrol Navigation 1 | . . . . . . . . . . . . . . . . . . . . . . . 1 . . . . Release Object 2 | . . . . . 2 . . . . . . . . . . . . . . . . . . . . . . Fabricator Hacks 11 | . . . . . . 1 . . . . . 3 . . . 3 . . . . . 3 . 1 . . . Network Status 3 | . . . . . . 1 . . . . . . . . . 1 . . . . . 1 . . . . . Load Schematic 5 | . . . . . . . . . . . . 2 . . . 1 . . . . . 1 . 1 . . . Build 3 | . . . . . . . . . . . . 1 . . . 1 . . . . . 1 . . . . . Repair Station Hacks 3 | . 2 . . . . . . . . . . . . . . . . . . . . 1 . . . . . Scan Component 3 | . 2 . . . . . . . . . . . . . . . . . . . . 1 . . . . . Recycling Unit Hacks . | . . . . . . . . . . . . . . . . . . . . . . . . . . . . Scanalyzer 13 | . . 1 . . . . . . . . . 5 . 2 . . . . . . . 5 . . . . . Insert Component 6 | . . . . . . . . . . . . 2 . 1 . . . . . . . 3 . . . . . Analyze 2 | . . . . . . . . . . . . . . 1 . . . . . . . 1 . . . . . Retrieve Study 5 | . . 1 . . . . . . . . . 3 . . . . . . . . . 1 . . . . . Garrison Access Hacks 15 | . . . 1 . . 1 . 1 . 1 . 1 . 1 . 2 . . . 1 . 2 . 3 . 1 . Unlock Access 8 | . . . 1 . . . . 1 . 1 . 1 . 1 . . . . . 1 . 1 . 1 . . . Seal Access 7 | . . . . . . 1 . . . . . . . . . 2 . . . . . 1 . 2 . 1 . Unauthorized Hacks 38 | . 5 8 1 . 11 2 . . . . . . . 1 . 1 . . . 2 . 5 . 1 . 1 . Terminals 26 | . 3 8 1 . 6 1 . . . . . . . 1 . 1 . . . 2 . 2 . . . 1 . Botnet 10 | . 2 2 1 . 1 1 . . . . . . . . . . . . . 1 . 1 . . . 1 . Operators 4 | . 1 1 . . . . . . . . . . . 1 . 1 . . . . . . . . . . . Skim 11 | . . 5 . . 5 . . . . . . . . . . . . . . . . 1 . . . . . Sabotage 1 | . . . . . . . . . . . . . . . . . . . . 1 . . . . . . . Fabricators 2 | . . . . . . 1 . . . . . . . . . . . . . . . . . 1 . . . Liberate 2 | . . . . . . 1 . . . . . . . . . . . . . . . . . 1 . . . Repair Stations 1 | . . . . . . . . . . . . . . . . . . . . . . 1 . . . . . Mechanics 1 | . . . . . . . . . . . . . . . . . . . . . . 1 . . . . . Recycling Units 7 | . 2 . . . 5 . . . . . . . . . . . . . . . . . . . . . . Reject 2 | . . . . . 2 . . . . . . . . . . . . . . . . . . . . . . Mask 2 | . . . . . 2 . . . . . . . . . . . . . . . . . . . . . . Tunnel 3 | . 2 . . . 1 . . . . . . . . . . . . . . . . . . . . . . Scanalyzers . | . . . . . . . . . . . . . . . . . . . . . . . . . . . . Garrison Access 2 | . . . . . . . . . . . . . . . . . . . . . . 2 . . . . . Broadcast 1 | . . . . . . . . . . . . . . . . . . . . . . 1 . . . . . Intercept 1 | . . . . . . . . . . . . . . . . . . . . . . 1 . . . . . Data Cores Recovered 2 | . . . . . . . . . . . . 1 . . . . . . . . . . . 1 . . . Used 1 | . . . . . . . . . . . . 1 . . . . . . . . . . . . . . . Hacking Detections 70 | . 8 6 1 1 6 7 . 1 4 1 3 7 1 2 1 4 1 1 . 2 . 8 . 3 1 1 . Full Trace Events 13 | . 2 . . . 1 1 . . 1 . 1 4 1 . . 1 . . . . . 1 . . . . . Feedback Events . | . . . . . . . . . . . . . . . . . . . . . . . . . . . . Feedback Blocked . | . . . . . . . . . . . . . . . . . . . . . . . . . . . . Robot Schematics Acquired 1 | . . . . . . 1 . . . . . . . . . . . . . . . . . . . . . Robots Built . | . . . . . . . . . . . . . . . . . . . . . . . . . . . . Authchips . | . . . . . . . . . . . . . . . . . . . . . . . . . . . . Time . | . . . . . . . . . . . . . . . . . . . . . . . . . . . . Total Robot Build Rating . | . . . . . . . . . . . . . . . . . . . . . . . . . . . . Part Schematics Acquired 3 | . 1 . . . . . . . . . . . . 1 . . . . . . . 1 . . . . . Parts Built 3 | . . . . . . . . . . . . 1 . . . 1 . . . . . 1 . . . . . Authchips . | . . . . . . . . . . . . . . . . . . . . . . . . . . . . Time 217 | . . . . . . . . . . . . 25 . . . 128 . . . . . 64 . . . . . Total Part Build Rating 17 | . . . . . . . . . . . . 1 . . . 8 . . . . . 8 . . . . . Part Studies Acquired 5 | . . 1 . . . . . . . . . 3 . . . . . . . . . 1 . . . . . Parts Repaired . | . . . . . . . . . . . . . . . . . . . . . . . . . . . . Time . | . . . . . . . . . . . . . . . . . . . . . . . . . . . . Parts Recycled . | . . . . . . . . . . . . . . . . . . . . . . . . . . . . Recycled Matter . | . . . . . . . . . . . . . . . . . . . . . . . . . . . . Retrieved Matter . | . . . . . . . . . . . . . . . . . . . . . . . . . . . . Retrieved Components . | . . . . . . . . . . . . . . . . . . . . . . . . . . . . Parts Scanalyzed 2 | . . . . . . . . . . . . 1 . . . . . . . . . 1 . . . . . Part Schematics Acquired 2 | . . . . . . . . . . . . . . 1 . . . . . . . 1 . . . . . Parts Damaged 2 | . . . . . . . . . . . . 1 . . . . . . . . . 1 . . . . . Bothacking | -11 -10 -9 -9 -9 -9 -7 -7 -7 -7 -6 -6 -5 -5 -4 -4 -4 -4 -4 -4 -4 -4 -3 -3 -2 -2 -1 -1 ------------ Run | Yrd Mat Mat Sto Gar Rec Fac Was Fac Gar Fac Gar Fac Gar Fac Gar Fac Ext Cet Arc Hub Gar Res Gar Res Gar Acc Com Used RIF Installer 9 | . . . . 1 . . . . 1 . 1 . 2 . 1 . . . . . 1 . 1 . 1 . . Coupler Efficiency 2 | . . . . . 1 . . . . . . . . . . . . . . . . . 1 . . . . Code Merge 1 | . . . . . . . . . . . . . . . 1 . . . . . . . . . . . . Threat Obfuscator 2 | . . . . . . . . . . . 1 . 1 . . . . . . . . . . . . . . Signal Jammer 1 | . . . . . . . . . . . . . . . . . . . . . 1 . . . . . . Robot Detection 1 | . . . . . . . . . . . . . 1 . . . . . . . . . . . . . . Structural Interface 1 | . . . . . . . . . 1 . . . . . . . . . . . . . . . . . . Autooverride 1 | . . . . . . . . . . . . . . . . . . . . . . . . . 1 . . Robots Hacked 164 | . . . . . . . . . . 4 2 6 7 12 6 18 2 . . 9 13 22 13 18 8 8 16 Non-combat 24 | . . . . . . . . . . 2 . 1 . 3 . 4 . . . . . 6 . 8 . . . Combat 139 | . . . . . . . . . . 2 2 5 7 9 6 14 2 . . 9 13 16 13 10 8 8 15 Autooverrided 3 | . . . . . . . . . . . . . . . . . . . . . . . . . . 1 2 Robot Hacks Applied 201 | . . . . . . . . . . 6 2 13 8 18 6 26 2 . . 9 13 29 15 25 8 7 14 parse_system 5 | . . . . . . . . . . . 1 . . 1 . 1 . . . . . . 1 1 . . . no_distress 1 | . . . . . . . . . . . . . . . . 1 . . . . . . . . . . . map_walls 1 | . . . . . . . . . . . . . . . . . . . . . . 1 . . . . . drop_inventory 6 | . . . . . . . . . . 1 . . . 1 . . . . . . . 2 . 2 . . . ignore_parts 2 | . . . . . . . . . . . . . . . . . . . . . . . . 2 . . . purge_threat 25 | . . . . . . . . . . 2 . 5 . 6 . 3 . . . . . 4 . 5 . . . locate_traps 1 | . . . . . . . . . . . . 1 . . . . . . . . . . . . . . . reprogram_traps 1 | . . . . . . . . . . . . 1 . . . . . . . . . . . . . . . block_reporting 3 | . . . . . . . . . . . . 1 . . . 1 . . . . . . . 1 . . . summon_haulers 1 | . . . . . . . . . . . . . . . . . . . . . . 1 . . . . . find_garrison 7 | . . . . . . . . . . . . 2 . . . 2 . . . . . 2 . 1 . . . scatter_targeting 2 | . . . . . . . . . . . . . . . . 1 . . . . . . . . . . 1 overload_power 3 | . . . . . . . . . . . . . . . . . . . . . . 1 1 . 1 . . amplify_resonance 57 | . . . . . . . . . . . 1 3 3 2 4 6 1 . . 3 4 10 3 8 4 2 3 wipe_record 2 | . . . . . . . . . . . . . . . . 2 . . . . . . . . . . . reboot_system 2 | . . . . . . . . . . 1 . . 1 . . . . . . . . . . . . . . overwrite_iff 25 | . . . . . . . . . . . . . 2 2 1 4 1 . . . 2 3 4 2 2 . 2 formatsys_low 5 | . . . . . . . . . . 1 . . . 1 . . . . . . . 2 . 1 . . . formatsys_high 52 | . . . . . . . . . . 1 . . 2 5 1 5 . . . 6 7 3 6 2 1 5 8 Manual 1 | . . . . . . . . . . . . . . . . . . . . . . . . . . . 1 Relay Couplers Released 106 | . . . . 5 . . . . 12 . 8 . 10 . 15 1 . . . 2 18 2 15 8 9 1 . Machine Destruction 102 | . . . . 5 . . . . 12 . 8 . 10 . 15 1 . . . 2 18 2 15 4 9 1 . Programmers 4 | . . . . . . . . . . . . . . . . . . . . . . . . 4 . . . Attached 48 | . . . . . . . . . . 2 1 2 3 4 5 3 . . . . 3 4 5 5 3 4 4 Fabnet Peak Effective % . | . . . . . . . . . . . . . . . . . . . . . . . . . . . . Robots Rewired 17 | . . . . . 3 . . . . . 4 . . . 8 . 2 . . . . . . . . . . Allies Hacked 7 | . . . . . . . . . . . . . 1 . . . . . . . . . 1 2 . 2 1 Hacks Repelled . | . . . . . . . . . . . . . . . . . . . . . . . . . . . . Allies | -11 -10 -9 -9 -9 -9 -7 -7 -7 -7 -6 -6 -5 -5 -4 -4 -4 -4 -4 -4 -4 -4 -3 -3 -2 -2 -1 -1 -------- Run | Yrd Mat Mat Sto Gar Rec Fac Was Fac Gar Fac Gar Fac Gar Fac Gar Fac Ext Cet Arc Hub Gar Res Gar Res Gar Acc Com Total Allies 136 | . . . . . 3 . 5 . 2 2 4 4 4 8 14 9 5 5 . 6 9 8 13 10 7 6 12 Largest Group 8 | . . . . . 3 . 5 . 2 2 4 4 2 3 8 4 2 5 4 5 6 7 6 5 5 7 7 Highest-Rated Group 846 | . . . . . 33 . 150 . 62 31 172 168 53 143 470 266 159 537 441 284 294 333 366 383 252 846 831 Highest-Rated Ally 219 | . . . . . 15 . 30 . 31 21 43 42 49 116 119 114 159 159 153 96 58 56 64 183 64 219 219 Total Orders 25 | . . . . . 3 . . . . . . . . 1 2 . . . . 3 6 4 . 3 . . 3 STAY 16 | . . . . . 2 . . . . . . . . 1 1 . . . . 2 5 2 . 1 . . 2 FOLLOW 7 | . . . . . 1 . . . . . . . . . 1 . . . . 1 1 1 . 1 . . 1 AID 2 | . . . . . . . . . . . . . . . . . . . . . . 1 . 1 . . . Ally Attacks 807 | . . . . . 7 . 10 . 8 7 63 14 24 16 96 48 13 22 1 51 43 80 39 67 19 36 143 Total Damage 30357 | . . . . . 150 . 181 . 149 200 1671 718 850 625 3519 1824 449 962 50 1774 1610 2274 1291 2357 763 1143 7797 Kills 145 | . . . . . . . . . . 1 15 4 1 6 22 5 2 2 . 5 5 13 7 13 3 8 33 Allies Corrupted 7 | . . . . . . . . . . . . . 1 . . . . . . 1 . 2 1 . . 1 1 Allies Melted 1 | . . . . . . . . . . . . . . . . . . . . . 1 . . . . . . X0-1V1 Amusement Gains 388 | . 13 5 . . 90 64 . . . . . . . . . 5 35 . . 60 . 42 20 5 4 . 45 Good Acts 172 | . . 3 1 5 9 9 8 . 7 . 6 8 19 6 18 7 3 1 . 4 8 10 6 12 14 2 6 Bad Acts 111 | . . 5 3 . 6 3 2 . 14 2 2 2 . 6 3 10 8 2 . 7 2 20 2 6 4 1 1 Intel | -11 -10 -9 -9 -9 -9 -7 -7 -7 -7 -6 -6 -5 -5 -4 -4 -4 -4 -4 -4 -4 -4 -3 -3 -2 -2 -1 -1 ------- Run | Yrd Mat Mat Sto Gar Rec Fac Was Fac Gar Fac Gar Fac Gar Fac Gar Fac Ext Cet Arc Hub Gar Res Gar Res Gar Acc Com Active Infowar (turns) 6783 | 10 534 . . . . . . . . 497 92 . . 94 21 65 6 17 . 313 28 1859 35 890 1131 498 693 Optics 5716 | . . . . . . . . . . 497 92 . . . 21 . . . . . . 1859 35 890 1131 498 693 Sensors 2 | . . . . . . . . . . . . . . . . . 2 . . . . . . . . . . Seismic 812 | 10 534 . . . . . . . . . . . . . . . . . . 240 28 . . . . . . T.N.C. 159 | . . . . . . . . . . . . . . 94 . 65 . . . . . . . . . . . Jamming 94 | . . . . . . . . . . . . . . . . . 4 17 . 73 . . . . . . . Robot Analysis Total 7 | . 5 1 . . 1 . . . . . . . . . . . . . . . . . . . . . . Derelict Logs Recovered . | . . . . . . . . . . . . . . . . . . . . . . . . . . . . Drone Launches . | . . . . . . . . . . . . . . . . . . . . . . . . . . . . Drone Recoveries . | . . . . . . . . . . . . . . . . . . . . . . . . . . . . Exploration | -11 -10 -9 -9 -9 -9 -7 -7 -7 -7 -6 -6 -5 -5 -4 -4 -4 -4 -4 -4 -4 -4 -3 -3 -2 -2 -1 -1 ------------- Run | Yrd Mat Mat Sto Gar Rec Fac Was Fac Gar Fac Gar Fac Gar Fac Gar Fac Ext Cet Arc Hub Gar Res Gar Res Gar Acc Com Turns Passed 25928 | 82 1432 1320 295 612 1954 948 624 16 1134 643 1404 405 773 986 1528 1589 917 220 47 984 895 1882 1010 1588 1178 498 964 Spaces Moved 15667 | 7 753 509 130 290 866 877 170 21 685 389 722 590 592 762 964 852 535 172 38 588 695 1691 689 908 523 254 395 Core . | . . . . . . . . . . . . . . . . . . . . . . . . . . . . Treads 5893 | 3 673 509 94 277 781 12 15 . 365 389 545 . . . 87 27 80 . . . 307 244 516 . 445 254 270 Legs 5602 | 4 . . . . 42 . 47 21 242 . . . . 179 877 825 455 172 38 177 . 1418 125 777 78 . 125 Wheels 898 | . 80 . 36 13 43 12 . . 48 . . . 289 348 . . . . . . . 29 . . . . . Hover 1694 | . . . . . . 853 108 . . . 10 . . 235 . . . . . 309 . . 48 131 . . . Flight 1580 | . . . . . . . . . 30 . 167 590 303 . . . . . . 102 388 . . . . . . Fastest Speed 40 | 120 125 160 105 105 121 89 75 75 75 139 40 40 40 68 92 133 89 89 89 83 83 69 91 74 154 154 154 Average Speed 114 | 137 156 160 145 167 159 90 139 75 100 139 125 40 60 79 124 133 115 89 89 87 87 80 99 141 161 154 158 Slowest Speed 298 | 160 160 160 160 240 298 188 193 75 172 139 154 40 82 115 180 133 216 89 89 89 145 97 191 198 278 154 165 Overloaded Moves 24 | . . . . . . . . . . . . . . . . . 24 . . . . . . . . . . Propulsion Burnouts . | . . . . . . . . . . . . . . . . . . . . . . . . . . . . Robots Hopped 4 | . . . . . . . . . . . . 4 . . . . . . . . . . . . . . . Potential Cave-ins 9 | . . . . . . . . . . . 3 1 . . . 2 . . . 2 . . . . . . 1 Cave-ins Triggered . | . . . . . . . . . . . . . . . . . . . . . . . . . . . . Exploration Rate (%) 53 | 2 94 44 37 60 97 24 84 1 91 15 73 20 86 26 91 28 74 75 63 52 91 47 93 28 70 12 25 Regions Visited 27 Branch Regions 7 Pre-discovered Areas 7 | . 2 4 . . 1 . . . . . . . . . . . . . . . . . . . . . . Known Exits Taken 10 | . . 1 1 . 1 . . 1 . 1 . 1 . 1 . . . . . 1 . 1 . 1 . . . Unknown Exits Taken 7 | 1 1 . . . . . . . . . . . . . . 1 1 1 1 . . . . . . 1 . Scrap Searched . | . . . . . . . . . . . . . . . . . . . . . . . . . . . . Spaces Dug 67 | . . . . . . 1 . . 6 4 7 4 . 5 4 10 . . . 12 4 6 . 1 3 . . Terrain Destroyed 1175 | . 47 19 23 18 . 90 94 . 19 22 119 29 103 100 52 90 89 3 . 36 46 54 38 26 22 4 32 Melee 13 | . . . . . . 1 . . 6 1 1 4 . . . . . . . . . . . . . . . Projectile 450 | . . . . . . . . . 5 16 66 2 4 16 18 52 55 3 . 26 46 54 23 26 22 4 12 AOE 712 | . 47 19 23 18 . 89 94 . 8 5 52 23 99 84 34 38 34 . . 10 . . 15 . . . 20 Terrain Rammed . | . . . . . . . . . . . . . . . . . . . . . . . . . . . . Walls Destroyed . | . . . . . . . . . . . . . . . . . . . . . . . . . . . . Machines Disabled . | . . . . . . . . . . . . . . . . . . . . . . . . . . . . Actions | -11 -10 -9 -9 -9 -9 -7 -7 -7 -7 -6 -6 -5 -5 -4 -4 -4 -4 -4 -4 -4 -4 -3 -3 -2 -2 -1 -1 --------- Run | Yrd Mat Mat Sto Gar Rec Fac Was Fac Gar Fac Gar Fac Gar Fac Gar Fac Ext Cet Arc Hub Gar Res Gar Res Gar Acc Com Total 22150 | 58 901 918 187 362 1392 986 541 21 939 470 1155 725 960 1069 1228 1201 794 218 51 997 939 2107 983 1178 802 332 636 Wait 3442 | 34 43 323 8 15 431 26 334 . 52 32 291 50 219 131 84 141 154 15 14 283 108 153 143 109 153 26 70 Move 15636 | 6 752 508 130 289 865 877 169 21 684 389 721 582 590 762 963 851 534 171 37 587 693 1690 688 908 522 253 394 Hop 4 | . . . . . . . . . . . . 4 . . . . . . . . . . . . . . . Pick Up 217 | . 16 13 5 4 4 18 1 . 9 5 10 4 16 8 18 6 7 1 . 9 13 9 11 15 9 2 4 Fast Attach 79 | 1 5 1 . 2 . 4 . . 2 2 3 4 1 6 6 7 3 1 . 2 2 7 3 10 5 . 2 Attach 88 | 2 . 7 5 1 3 5 3 . 2 3 4 3 5 9 2 . 4 . . 3 . 3 5 7 2 4 6 Detach 25 | . . . . . 1 3 3 . 1 2 3 . 5 4 1 . 1 . . . 1 . . . . . . Swap 231 | 1 11 10 9 7 10 5 3 . 6 6 7 9 6 17 15 16 3 4 . 14 10 17 9 16 5 1 14 Drop 220 | 3 8 7 3 3 12 15 6 . 13 5 11 9 12 13 19 6 6 1 . 12 9 12 2 11 16 . 6 Fire 1900 | 11 59 47 27 41 21 28 22 . 101 21 90 52 71 115 109 169 56 25 . 83 73 212 104 92 87 44 140 Melee 97 | . . . . . 5 5 . . 67 4 1 6 9 . . . . . . . . . . . . . . Ram 2 | . . . . . . . . . . . . . . . . . . . . 2 . . . . . . . Kick 25 | . . . . . 1 . . . . . . . . 1 3 5 3 . . . . 3 . 9 . . . Crush 16 | . 7 2 . . 4 . . . . 1 . . . . . . . . . . . . . . . 2 . Escape Stasis 58 | . . . . . . . . . 2 . . . 11 . 4 . . . . . 28 . 13 . . . . Rewire 96 | . . . . . 35 . . . . . 14 . 3 3 4 . 23 . . 2 2 1 5 1 3 . . Trap 2 | . . . . . . . . . . . . 2 . . . . . . . . . . . . . . . Miscellaneous 12 | . . . . . . . . . . . . . 12 . . . . . . . . . . . . . . Route ------- -11/Scrapyard -10/Materials (discovered 5 exits: *Mat x3 / [*Min] / [*Sub]) -9/Materials (discovered 6 exits: *Mat x3 / [*Min] / *Sto x2) -9/Storage -9/Garrison (discovered 3 exits: *Rec x3) -9/Recycling -7/Factory -7/Waste -7/Factory -7/Garrison (discovered 3 exits: *Fac x3) -6/Factory (discovered 3 exits: Low x2 / Gar) -6/Garrison (discovered 2 exits: *Fac x2) -5/Factory (discovered 2 exits: *Fac / Gar) -5/Garrison (discovered 3 exits: *Fac x3) -4/Factory (discovered 6 exits: *Res x2 / *Upp x2 / *Ext / Gar) -4/Garrison (discovered 4 exits: *Res x3 / *Fac) -4/Factory (discovered 5 exits: *Res x3 / *Upp / *Ext) -4/Extension (discovered 3 exits: *Res x2 / *Cet) -4/Cetus (discovered 2 exits: *Res / [*Arc]) -4/Archives -4/Hub_04(d) (discovered 4 exits: *Res x3 / Gar) -4/Garrison (discovered 3 exits: *Res x3) -3/Research (discovered 3 exits: *Res x2 / Gar) -3/Garrison (discovered 3 exits: *Res x3) -2/Research (discovered 4 exits: *Acc x2 / [*Tes] / Gar) -2/Garrison (discovered 3 exits: *Acc x3) -1/Access -1/Command (discovered 2 exits: [*Sur x2]) 0b11 Command History --------- Turn | Location | Event 51 | -11/Scrapyard | Discovered new exit (range 2) 83 | -11/Scrapyard | Entered Materials 310 | -10/Materials | Build established: Mutant 351 | -10/Materials | Discovered new exit (range 16) 484 | -10/Materials | Discovered new exit (range 11) 750 | -10/Materials | Discovered new exit (range 15) 991 | -10/Materials | Discovered new exit (range 16) 1383 | -10/Materials | Discovered new exit (range 6) 1394 | -10/Materials | Prayed at D.C.S.S. Altar Unit 1515 | -10/Materials | Entered another Materials area 1515 | -9/Materials | Evolved 2 slots: Propulsion x1, Weapon x1 1549 | -9/Materials | Energy generation permanently improved by X0-1V1 (+10; -100 max core) 1816 | -9/Materials | Discovered new exit (range 5) 1820 | -9/Materials | Build established: Scavenger-Gunner 2021 | -9/Materials | Discovered new exit (range 4) 2077 | -9/Materials | X0-1V1 mutated your Weapon slot to Utility slot 2130 | -9/Materials | X0-1V1 sent you into danger 2130 | -9/Materials | Lost 5 parts (1p2n1u1w) 2394 | -9/Materials | Discovered new exit (range 13) 2411 | -9/Materials | Build established: Mutant 2560 | -9/Materials | Learned location of Zion (-7) 2592 | -9/Materials | Core integrity restored by X0-1V1 (+45) 2620 | -9/Materials | Learned Storage stockpile data 2669 | -9/Materials | Learned location of 1 exit from Recycling 2707 | -9/Materials | Loaded intel: 2 recycling unit locations 2777 | -9/Materials | Learned 2 Storage zone layouts 2783 | -9/Materials | X0-1V1 vaporized surrounding terrain (radius 20) 2811 | -9/Materials | Identified exit to Materials 2811 | -9/Materials | Identified exit to Storage 2835 | -9/Materials | Entered Storage 3012 | -9/Storage | X0-1V1 sent you into danger 3017 | -9/Storage | Garrison activated, responded to threat 3074 | -9/Storage | Core integrity fell below 50% 3094 | -9/Storage | Lost 4 parts (3n1w) 3097 | -9/Storage | Destroyed 7 combat bots 3114 | -9/Storage | X0-1V1 added 0b10 threat records associated with you (considerable) 3130 | -9/Storage | Identified exit to Garrison 3130 | -9/Storage | Entered Garrison 3250 | -9/Garrison | Garrison Relay disabled 3350 | -9/Garrison | Triggered checkpoint 3361 | -9/Garrison | Destroyed 10 combat bots 3368 | -9/Garrison | Triggered checkpoint 3414 | -9/Garrison | Ranged accuracy permanently improved by X0-1V1 (+9%; -90 max core) 3423 | -9/Garrison | Discovered new exit (range 8) 3468 | -9/Garrison | Discovered new exit (range 50) 3468 | -9/Garrison | Discovered new exit (range 6) 3468 | -9/Garrison | Discovered new exit (range 43) 3610 | -9/Garrison | Installed Relay Interface Framework 3742 | -9/Garrison | Entered Recycling 3743 | -9/Recycling | Identified exit to Factory 3875 | -9/Recycling | X0-1V1 vaporized surrounding terrain (radius 24) 4227 | -9/Recycling | Core integrity restored by X0-1V1 (+44) 4434 | -9/Recycling | Core integrity permanently improved by X0-1V1 (+250) 4497 | -9/Recycling | Scanned before Scraplab entrance 4510 | -9/Recycling | Expanded RIF knowledge: Coupler Efficiency 4519 | -9/Recycling | Entered Scraplab 4619 | -9/Recycling | X0-1V1 added 0b10 threat records associated with you (minor) 4731 | -9/Recycling | X0-1V1 activates XOMVISION 5095 | -9/Recycling | Angered Scraplab inhabitants 5097 | -9/Recycling | Found Prototype Device 5132 | -9/Recycling | Lost 3 allies 5150 | -9/Recycling | Identified Scrap Engine 5581 | -9/Recycling | Build established: Construct 5696 | -9/Recycling | Entered Factory 5696 | -7/Factory | Evolved 4 slots: Propulsion x1, Utility x2, Weapon x1 5720 | -7/Factory | X0-1V1 foreshadows a heat wave 5875 | -7/Factory | Ambient heat levels rising (+10) 5911 | -7/Factory | X0-1V1 sent hostile S-27 Virus (x4) 5995 | -7/Factory | Discovered new exit (range 2) 5995 | -7/Factory | X0-1V1 sent you into danger 6014 | -7/Factory | X0-1V1 activates XOMVISION 6031 | -7/Factory | Ambient heat levels rising (+10) 6190 | -7/Factory | Ambient heat levels falling (-10) 6275 | -7/Factory | X0-1V1 activates XOMVISION 6347 | -7/Factory | Ambient heat levels falling (-10) 6497 | -7/Factory | System corruption reached 10% 6644 | -7/Factory | Sucked down chute 6644 | -7/Factory | Entered Waste 6650 | -7/Waste | Spotted C-40 Crusher 6672 | -7/Waste | X0-1V1 sent allied L-41 Fighter (x5) 6684 | -7/Waste | Destroyed C-40 Crusher 6693 | -7/Waste | Spotted C-40 Crusher 6693 | -7/Waste | Spotted C-40 Crusher 6708 | -7/Waste | Spotted C-40 Crusher 6715 | -7/Waste | Destroyed C-40 Crusher 6715 | -7/Waste | Spotted C-40 Crusher 6719 | -7/Waste | Spotted C-40 Crusher 6721 | -7/Waste | Destroyed C-40 Crusher 6732 | -7/Waste | Destroyed C-40 Crusher 6740 | -7/Waste | Destroyed C-40 Crusher 6971 | -7/Waste | Identified exit to Factory 6971 | -7/Waste | X0-1V1 revealed exit location to -7/Factory 7268 | -7/Waste | Entered Factory 7284 | -7/Factory | Identified exit to Garrison 7284 | -7/Factory | Entered Garrison 7293 | -7/Garrison | X0-1V1 mutated your Utility slot to Weapon slot 7330 | -7/Garrison | Triggered checkpoint 7349 | -7/Garrison | Expanded RIF knowledge: Structural Interface 7367 | -7/Garrison | Garrison Relay disabled 7402 | -7/Garrison | Triggered checkpoint 7467 | -7/Garrison | Triggered checkpoint 7636 | -7/Garrison | X0-1V1 mutated your Weapon slot to Propulsion slot 7656 | -7/Garrison | Destroyed 9 combat bots 7656 | -7/Garrison | X0-1V1 destroyed Phase Generator 7656 | -7/Garrison | Phase Generator disabled 7720 | -7/Garrison | Triggered checkpoint 7723 | -7/Garrison | Garrison Relay disabled 7750 | -7/Garrison | Discovered new exit (range 14) 7804 | -7/Garrison | Triggered checkpoint 7864 | -7/Garrison | Rescued a captive Derelict 7865 | -7/Garrison | Rescued a captive Derelict 7931 | -7/Garrison | Discovered new exit (range 3) 8018 | -7/Garrison | X0-1V1 sent you into danger 8025 | -7/Garrison | Build established: Bothacker-Construct 8144 | -7/Garrison | Triggered checkpoint 8202 | -7/Garrison | Triggered checkpoint 8292 | -7/Garrison | Garrison Relay disabled 8367 | -7/Garrison | Discovered new exit (range 10) 8418 | -7/Garrison | Entered Factory 8418 | -6/Factory | Evolved 2 slots: Utility x2 8630 | -6/Factory | X0-1V1 sent hostile H-55 Commando (x2) 8869 | -6/Factory | Identified exit to Lower Caves 8940 | -6/Factory | Build established: Construct 9057 | -6/Factory | Spotted B-75 Beast 9061 | -6/Factory | Identified exit to Garrison 9061 | -6/Factory | Entered Garrison 9163 | -6/Garrison | Triggered checkpoint 9195 | -6/Garrison | Triggered checkpoint 9197 | -6/Garrison | Destroyed 7 combat bots 9307 | -6/Garrison | Triggered checkpoint 9397 | -6/Garrison | Triggered checkpoint 9417 | -6/Garrison | Triggered checkpoint 9746 | -6/Garrison | Triggered checkpoint 9752 | -6/Garrison | Triggered checkpoint 9757 | -6/Garrison | X0-1V1 rewrote Chaingunner 5b IFF filter 9828 | -6/Garrison | Expanded RIF knowledge: Threat Obfuscation 9889 | -6/Garrison | Triggered checkpoint 9892 | -6/Garrison | Discovered new exit (range 13) 9902 | -6/Garrison | X0-1V1 sent hostile S-27 Virus (x4) 9949 | -6/Garrison | Build established: Bothacker-Construct 9969 | -6/Garrison | Triggered checkpoint 9969 | -6/Garrison | Garrison Relay disabled 10400 | -6/Garrison | Triggered checkpoint 10416 | -6/Garrison | Discovered new exit (range 8) 10465 | -6/Garrison | Entered Factory 10465 | -5/Factory | Evolved 2 slots: Power x1, Utility x1 10489 | -5/Factory | Identified exit to Factory 10489 | -5/Factory | X0-1V1 revealed exit location to -4/Factory 10493 | -5/Factory | X0-1V1 announced a LAN party 10528 | -5/Factory | X0-1V1 released a cloud of subatomizers 10656 | -5/Factory | X0-1V1 sent you to a vault 10750 | -5/Factory | Lost 3 allies 10759 | -5/Factory | Destroyed 7 combat bots 10821 | -5/Factory | Fabricated Huge Storage Unit (x1) 10870 | -5/Factory | Identified exit to Garrison 10870 | -5/Factory | Entered Garrison 10893 | -5/Garrison | Triggered checkpoint 10914 | -5/Garrison | Garrison Relay disabled 10934 | -5/Garrison | X0-1V1 activates XOMVISION 10967 | -5/Garrison | Weapon slot count temporarily expanded by X0-1V1 (+3) 10994 | -5/Garrison | Build established: Construct 11005 | -5/Garrison | Lost 3 allies 11008 | -5/Garrison | Triggered checkpoint 11044 | -5/Garrison | Destroyed 10 combat bots 11046 | -5/Garrison | Triggered checkpoint 11060 | -5/Garrison | Phase Generator disabled 11080 | -5/Garrison | Expanded RIF knowledge: Threat Obfuscation 11089 | -5/Garrison | Expanded RIF knowledge: Robot Detection 11092 | -5/Garrison | Discovered exit to Factory (range 3) 11102 | -5/Garrison | Garrison Relay disabled 11280 | -5/Garrison | X0-1V1 activates XOMVISION 11297 | -5/Garrison | Spotted B-75 Beast 11315 | -5/Garrison | Allies destroyed B-75 Beast 11379 | -5/Garrison | Triggered checkpoint 11380 | -5/Garrison | Triggered checkpoint 11439 | -5/Garrison | Garrison Relay disabled 11472 | -5/Garrison | Discovered exit to Factory (range 11) 11496 | -5/Garrison | X0-1V1 activates XOMVISION 11519 | -5/Garrison | X0-1V1 revealed exit location to -4/Factory 11536 | -5/Garrison | Spotted B-90 Cyclops 11596 | -5/Garrison | Weapon slot count temporarily expanded by X0-1V1 (+3) 11597 | -5/Garrison | Destroyed B-90 Cyclops 11606 | -5/Garrison | Found Quantum Capacitor 11643 | -5/Garrison | Entered Factory 11643 | -4/Factory | Evolved 2 slots: Propulsion x1, Weapon x1 11715 | -4/Factory | Discovered new exit (range 10) 11814 | -4/Factory | Build established: Botlord-Construct 11845 | -4/Factory | Spotted B-86 Titan 11867 | -4/Factory | X0-1V1 sent you into danger 11869 | -4/Factory | Assimilated Titan 7a with formatsys_high 12041 | -4/Factory | Discovered new exit (range 4) 12195 | -4/Factory | X0-1V1 activates XOMVISION 12265 | -4/Factory | X0-1V1 sent hostile Savage (x1) 12271 | -4/Factory | Found Prototype Hackware 12271 | -4/Factory | Identified Exp. System Shield 12334 | -4/Factory | Cargo convoy interrupted 12365 | -4/Factory | Found Prototype Launcher 12365 | -4/Factory | Identified Enh. Gamma Bomb Array 12372 | -4/Factory | Identified exit to Research 12372 | -4/Factory | X0-1V1 revealed exit location to -3/Research 12378 | -4/Factory | Destroyed 14 combat bots 12415 | -4/Factory | Build established: Bothacker-Construct 12436 | -4/Factory | Found Prototype Processor 12436 | -4/Factory | Identified Exp. Terrain Scan Processor 12442 | -4/Factory | Found Prototype Device 12442 | -4/Factory | Identified Exp. Thermal Shield 12512 | -4/Factory | Identified exit to Upper Caves 12512 | -4/Factory | X0-1V1 revealed exit location to -4/Upper Caves 12585 | -4/Factory | Discovered exit to Research (range 7) 12629 | -4/Factory | Identified exit to Garrison 12629 | -4/Factory | Entered Garrison 12686 | -4/Garrison | Triggered checkpoint 12719 | -4/Garrison | Garrison Relay disabled 12741 | -4/Garrison | X0-1V1 upgraded hostiles (x3) 12742 | -4/Garrison | X0-1V1 sent allied Mutant (x3) 12813 | -4/Garrison | Lost 3 allies 12849 | -4/Garrison | Spotted Executioner 12866 | -4/Garrison | Destroyed Executioner 12870 | -4/Garrison | Found Prototype Processor 12870 | -4/Garrison | Identified Exp. Core Analyzer 12879 | -4/Garrison | Found Prototype Device 12879 | -4/Garrison | Identified Adv. Kinecellerator 12907 | -4/Garrison | Rewired Executioner 12944 | -4/Garrison | Triggered checkpoint 12959 | -4/Garrison | Spotted B-86 Titan 12965 | -4/Garrison | Destroyed B-86 Titan 12967 | -4/Garrison | Triggered checkpoint 12984 | -4/Garrison | Spotted B-86 Titan 12989 | -4/Garrison | Allies destroyed B-86 Titan 13020 | -4/Garrison | Found Unknown Device 13020 | -4/Garrison | Identified Adv. Force Booster 13030 | -4/Garrison | X0-1V1 activates XOMVISION 13063 | -4/Garrison | Triggered checkpoint 13068 | -4/Garrison | X0-1V1 turns hostiles against one another 13071 | -4/Garrison | Triggered checkpoint 13090 | -4/Garrison | Triggered checkpoint 13113 | -4/Garrison | Garrison Relay disabled 13120 | -4/Garrison | Destroyed 7 combat bots 13296 | -4/Garrison | X0-1V1 revealed exit location to -3/Research 13301 | -4/Garrison | Triggered checkpoint 13376 | -4/Garrison | Garrison Relay disabled 13411 | -4/Garrison | Triggered checkpoint 13419 | -4/Garrison | Build established: Botlord-Construct 13444 | -4/Garrison | Discovered exit to Research (range 15) 13491 | -4/Garrison | Triggered checkpoint 13504 | -4/Garrison | Discovered new exit (range 3) 13597 | -4/Garrison | Triggered checkpoint 13635 | -4/Garrison | Lost 3 allies 13677 | -4/Garrison | Discovered exit to Research (range 8) 13776 | -4/Garrison | X0-1V1 destroyed Phase Generator 13776 | -4/Garrison | Phase Generator disabled 13807 | -4/Garrison | Destroyed Executioner 13819 | -4/Garrison | Found Corrupted Prototype Processor 13877 | -4/Garrison | Found Relay Coupler [Proto] 13881 | -4/Garrison | Found Relay Coupler [Proto] 13888 | -4/Garrison | Found Relay Coupler [Proto] 13891 | -4/Garrison | Found Relay Coupler [Proto] 13925 | -4/Garrison | Expanded RIF knowledge: Code Merge 13952 | -4/Garrison | Discovered exit to Research (range 50) 13952 | -4/Garrison | Discovered exit to Research (range 15) 13952 | -4/Garrison | Discovered exit to Research (range 81) 13952 | -4/Garrison | Discovered new exit (range 69) 14157 | -4/Garrison | Entered Factory 14157 | -4/Factory | Accompanied by 1 ally 14407 | -4/Factory | First assault squad dispatched 14742 | -4/Factory | Fabricated Adv. Remote Force Field (x1) 14844 | -4/Factory | Discovered exit to Research (range 16) 14878 | -4/Factory | Discovered exit to Research (range 7) 14952 | -4/Factory | X0-1V1 downgraded hostiles (x2) 15072 | -4/Factory | X0-1V1 revealed exit location to -3/Research 15245 | -4/Factory | Discovered exit to Upper Caves (range 7) 15325 | -4/Factory | X0-1V1 enhanced Transport squad support 15332 | -4/Factory | Cargo convoy interrupted 15424 | -4/Factory | System corruption reached 10% 15453 | -4/Factory | Garrison activated, responded to threat 15608 | -4/Factory | Lost 5 allies 15608 | -4/Factory | Spotted B-86 Titan 15634 | -4/Factory | Destroyed B-86 Titan 15734 | -4/Factory | Discovered new exit (range 9) 15746 | -4/Factory | Entered Extension 15854 | -4/Extension | X0-1V1 sent hostile X-82 Rainmaker (x4) 15894 | -4/Extension | Destroyed B-86 Titan 15922 | -4/Extension | Destroyed B-86 Titan 15990 | -4/Extension | X0-1V1 sent hostile G-67 Veteran (x6) 16107 | -4/Extension | X0-1V1 sent you into danger 16276 | -4/Extension | Energy Cycler disabled 16277 | -4/Extension | Rescued a captive Derelict 16277 | -4/Extension | Rescued a captive Derelict 16278 | -4/Extension | Rescued a captive Derelict 16278 | -4/Extension | Rescued a captive Derelict 16280 | -4/Extension | Build established: Construct 16283 | -4/Extension | Rescued a captive Derelict 16496 | -4/Extension | First assault squad dispatched 16497 | -4/Extension | Identified Exp. Targeting Computer 16509 | -4/Extension | Discovered exit to Research (range 14) 16520 | -4/Extension | Rescued A7 16626 | -4/Extension | Discovered new exit (range 16) 16627 | -4/Extension | Discovered exit to Research (range 15) 16663 | -4/Extension | Entered Cetus 16663 | -4/Cetus | Accompanied by 1 ally (A7) 16668 | -4/Cetus | Acquired a Cetus Manufacturing Module code from A7 16674 | -4/Cetus | Spotted Cetus Guard 16674 | -4/Cetus | Spotted Cetus Guard 16675 | -4/Cetus | Destroyed Cetus Guard 16676 | -4/Cetus | Spotted Cetus Guard 16679 | -4/Cetus | Destroyed Cetus Guard 16685 | -4/Cetus | Destroyed Cetus Guard 16686 | -4/Cetus | Spotted Cetus Guard 16690 | -4/Cetus | Destroyed Cetus Guard 16744 | -4/Cetus | Started Cetus Manufacturing Module 16766 | -4/Cetus | Escorted A7 to Cetus Mainframe 16769 | -4/Cetus | Manufactured an Enhanced Grunt 16778 | -4/Cetus | Discovered new exit (range 15) 16792 | -4/Cetus | Spotted Cetus Guard 16792 | -4/Cetus | Spotted Cetus Guard 16794 | -4/Cetus | Manufactured an Enhanced Grunt 16794 | -4/Cetus | Destroyed Cetus Guard 16794 | -4/Cetus | Spotted Cetus Guard 16801 | -4/Cetus | Destroyed Cetus Guard 16803 | -4/Cetus | Destroyed Cetus Guard 16804 | -4/Cetus | Spotted Cetus Guard 16811 | -4/Cetus | Destroyed Cetus Guard 16819 | -4/Cetus | Manufactured an Enhanced Grunt 16823 | -4/Cetus | Discovered exit to Research (range 15) 16828 | -4/Cetus | Met Revision 17 16844 | -4/Cetus | Manufactured an Enhanced Grunt 16861 | -4/Cetus | X0-1V1 rewrote Enhanced Grunt IFF filter 16869 | -4/Cetus | Manufactured an Enhanced Grunt 16883 | -4/Cetus | Entered Archives 16883 | -4/Archives | Accompanied by 4 allies (A7) 16888 | -4/Archives | Received a hacking code to weaken MAIN.C 16894 | -4/Archives | Met Zhirov 16900 | -4/Archives | Reinforcements dispatched to Archives 16903 | -4/Archives | Discovered new exit (range 16) 16927 | -4/Archives | Build established: Botlord-Construct 16930 | -4/Archives | Entered Hub_04(d) 16930 | -4/Hub_04(d) | Accompanied by 2 allies 16957 | -4/Hub_04(d) | Identified exit to Garrison 17054 | -4/Hub_04(d) | Spotted B-86 Titan 17094 | -4/Hub_04(d) | X0-1V1 revealed exit location to -3/Research 17236 | -4/Hub_04(d) | X0-1V1 vaporized surrounding terrain (radius 18) 17243 | -4/Hub_04(d) | X0-1V1 sent you into danger 17350 | -4/Hub_04(d) | X0-1V1 sent you into danger 17388 | -4/Hub_04(d) | Discovered exit to Research (range 15) 17453 | -4/Hub_04(d) | Lost 4 allies 17454 | -4/Hub_04(d) | Discovered exit to Research (range 5) 17513 | -4/Hub_04(d) | X0-1V1 sent you to a vault 17528 | -4/Hub_04(d) | Found Prototype Device 17528 | -4/Hub_04(d) | Identified Exp. EM Disruption Field 17681 | -4/Hub_04(d) | Network Hub disabled 17715 | -4/Hub_04(d) | X0-1V1 activates XOMVISION 17811 | -4/Hub_04(d) | Network Hub disabled 17912 | -4/Hub_04(d) | Network Hub disabled 17914 | -4/Hub_04(d) | Entered Garrison 17922 | -4/Garrison | Triggered checkpoint 17925 | -4/Garrison | Build established: Bothacker-Construct 17972 | -4/Garrison | X0-1V1 vaporized surrounding terrain (radius 17) 18000 | -4/Garrison | Core integrity restored by X0-1V1 (+217) 18001 | -4/Garrison | Expanded RIF knowledge: Signal Jamming 18034 | -4/Garrison | Triggered checkpoint 18040 | -4/Garrison | Garrison Relay disabled 18162 | -4/Garrison | Spotted B-86 Titan 18169 | -4/Garrison | Triggered checkpoint 18170 | -4/Garrison | Triggered checkpoint 18176 | -4/Garrison | Triggered checkpoint 18203 | -4/Garrison | Destroyed B-86 Titan 18250 | -4/Garrison | Triggered checkpoint 18263 | -4/Garrison | Garrison Relay disabled 18282 | -4/Garrison | Discovered exit to Research (range 12) 18334 | -4/Garrison | Build established: Botlord-Construct 18390 | -4/Garrison | Triggered checkpoint 18409 | -4/Garrison | Garrison Relay disabled 18510 | -4/Garrison | Spotted Executioner 18510 | -4/Garrison | Spotted Executioner 18599 | -4/Garrison | Allies destroyed Executioner 18609 | -4/Garrison | Allies destroyed Executioner 18639 | -4/Garrison | Lost 4 allies 18650 | -4/Garrison | Discovered exit to Research (range 10) 18682 | -4/Garrison | Triggered checkpoint 18720 | -4/Garrison | Garrison Relay disabled 18736 | -4/Garrison | Triggered checkpoint 18760 | -4/Garrison | Discovered exit to Research (range 15) 18809 | -4/Garrison | Entered Research 18809 | -3/Research | Accompanied by 2 allies 18809 | -3/Research | Evolved 2 slots: Utility x2 18832 | -3/Research | Found Prototype Processor 18832 | -3/Research | Identified Spectral Analyzer 18927 | -3/Research | X0-1V1 added 0b10 threat records associated with you (major) 18939 | -3/Research | X0-1V1 announced a LAN party 18944 | -3/Research | X0-1V1 activates XOMVISION 19009 | -3/Research | Revision forces began assault on 0b10 19167 | -3/Research | Met up with Revision 17++ 19186 | -3/Research | X0-1V1 added 0b10 threat records associated with you (minor) 19454 | -3/Research | Watched by a mysterious "MATRIX" hacker 19454 | -3/Research | Identified exit to Garrison 19509 | -3/Research | Research terminal network offline 19601 | -3/Research | Fabricated Adv. Remote Force Field (x1) 19799 | -3/Research | Spotted Striker 19800 | -3/Research | Spotted Striker 19813 | -3/Research | Destroyed Striker 19865 | -3/Research | Lost 3 allies 19898 | -3/Research | Spotted Striker 19931 | -3/Research | Lost 3 allies 20046 | -3/Research | Spotted Striker 20047 | -3/Research | Spotted Striker 20078 | -3/Research | Destroyed Striker 20100 | -3/Research | Spotted Striker 20110 | -3/Research | Destroyed Striker 20139 | -3/Research | Lost 5 allies 20142 | -3/Research | Destroyed 8 combat bots 20192 | -3/Research | Discovered new exit (range 14) 20302 | -3/Research | X0-1V1 added 0b10 threat records associated with you (considerable) 20313 | -3/Research | Found Gamma Bomb Array 20323 | -3/Research | Spotted B-86 Titan 20345 | -3/Research | Destroyed B-86 Titan 20355 | -3/Research | System corruption reached 10% 20365 | -3/Research | Identified exit to Research 20365 | -3/Research | X0-1V1 revealed exit location to -2/Research 20494 | -3/Research | Spotted Striker 20606 | -3/Research | X0-1V1 added 0b10 threat records associated with you (major) 20609 | -3/Research | X0-1V1 mutated your Utility slot to Power slot 20691 | -3/Research | Entered Garrison 20721 | -3/Garrison | Garrison Relay disabled 20799 | -3/Garrison | Triggered checkpoint 20917 | -3/Garrison | Triggered checkpoint 20920 | -3/Garrison | Triggered checkpoint 20921 | -3/Garrison | X0-1V1 turns hostiles against one another 20923 | -3/Garrison | Triggered checkpoint 21049 | -3/Garrison | Discovered exit to Research (range 8) 21072 | -3/Garrison | Triggered checkpoint 21077 | -3/Garrison | Garrison Relay disabled 21104 | -3/Garrison | Rescued a captive Derelict 21166 | -3/Garrison | Garrison Relay disabled 21179 | -3/Garrison | Triggered checkpoint 21304 | -3/Garrison | Discovered exit to Research (range 3) 21309 | -3/Garrison | Destroyed 14 combat bots 21318 | -3/Garrison | Lost 4 allies 21419 | -3/Garrison | Discovered exit to Research (range 11) 21499 | -3/Garrison | Triggered checkpoint 21544 | -3/Garrison | Expanded RIF knowledge: Coupler Efficiency 21550 | -3/Garrison | Garrison Relay disabled 21701 | -3/Garrison | Entered Research 21701 | -2/Research | Accompanied by 2 allies 21701 | -2/Research | Evolved 2 slots: Utility x2 21812 | -2/Research | Discovered new exit (range 7) 21923 | -2/Research | X0-1V1 sent you into danger 21984 | -2/Research | Lost 3 parts (3u) 21997 | -2/Research | Identified exit to Access 21997 | -2/Research | X0-1V1 revealed exit location to -1/Access 22011 | -2/Research | Lost 4 allies 22055 | -2/Research | System corruption reached 10% 22232 | -2/Research | Spotted B-90 Cyclops 22238 | -2/Research | Destroyed B-90 Cyclops 22275 | -2/Research | X0-1V1 sent you to a vault 22696 | -2/Research | Discovered exit to Access (range 13) 23110 | -2/Research | Spotted B-90 Cyclops 23214 | -2/Research | Found Enh. Gamma Bomb Array 23289 | -2/Research | Identified exit to Garrison 23289 | -2/Research | Entered Garrison 23316 | -2/Garrison | H-XX Assembler disabled 23332 | -2/Garrison | Found GOLEM Unit 23339 | -2/Garrison | X0-1V1 revealed exit location to -1/Access 23510 | -2/Garrison | Phase Generator disabled 23578 | -2/Garrison | Triggered checkpoint 23581 | -2/Garrison | Triggered checkpoint 23601 | -2/Garrison | Garrison Relay disabled 23705 | -2/Garrison | Triggered checkpoint 23752 | -2/Garrison | Spotted B-90 Cyclops 23782 | -2/Garrison | X0-1V1 activates XOMVISION 23828 | -2/Garrison | Destroyed B-90 Cyclops 23920 | -2/Garrison | Discovered exit to Access (range 13) 23951 | -2/Garrison | Triggered checkpoint 23978 | -2/Garrison | Garrison Relay disabled 24063 | -2/Garrison | Triggered checkpoint 24116 | -2/Garrison | Core integrity restored by X0-1V1 (+437) 24138 | -2/Garrison | X0-1V1 revealed exit location to -1/Access 24145 | -2/Garrison | Expanded RIF knowledge: Autooverride 24207 | -2/Garrison | Discovered exit to Access (range 25) 24207 | -2/Garrison | Discovered exit to Access (range 14) 24207 | -2/Garrison | Discovered exit to Access (range 63) 24279 | -2/Garrison | Triggered checkpoint 24303 | -2/Garrison | Triggered checkpoint 24317 | -2/Garrison | X0-1V1 sent allied G-67 Veteran (x4) 24467 | -2/Garrison | Entered Access 24467 | -1/Access | Accompanied by 5 allies 24467 | -1/Access | Evolved 2 slots: Utility x2 24815 | -1/Access | Lost 4 allies 24852 | -1/Access | Spotted B-99 Colossus 24860 | -1/Access | Assimilated Colossus 10a with formatsys_high 24885 | -1/Access | Spotted B-99 Colossus 24886 | -1/Access | Assimilated Colossus 10b with formatsys_high 24908 | -1/Access | Discovered new exit (range 4) 24965 | -1/Access | Entered Command 24965 | -1/Command | Accompanied by 6 allies 25075 | -1/Command | Found Fusion Bomb Launcher 25215 | -1/Command | First assault squad dispatched 25296 | -1/Command | Spotted Executioner 25296 | -1/Command | Spotted Striker 25300 | -1/Command | Spotted Alpha 7 25300 | -1/Command | Spotted Executioner 25310 | -1/Command | Spotted Executioner 25310 | -1/Command | Spotted Executioner 25310 | -1/Command | Spotted Striker 25310 | -1/Command | Spotted Alpha 7 25313 | -1/Command | Assimilated Alpha 7 with formatsys_high 25316 | -1/Command | Spotted B-99 Colossus 25318 | -1/Command | Allies destroyed Executioner 25319 | -1/Command | Assimilated Alpha 7 with formatsys_high 25323 | -1/Command | Assimilated Executioner with formatsys_high 25324 | -1/Command | Assimilated Executioner with formatsys_high 25329 | -1/Command | Spotted B-99 Colossus 25332 | -1/Command | Assimilated Colossus 10c with formatsys_high 25335 | -1/Command | Allies destroyed Striker 25337 | -1/Command | Allies destroyed Executioner 25337 | -1/Command | Assimilated Colossus 10d with formatsys_high 25338 | -1/Command | Discovered new exit (range 18) 25355 | -1/Command | Found Exp. Core Analyzer 25368 | -1/Command | Lost 9 allies 25399 | -1/Command | X0-1V1 activates XOMVISION 25419 | -1/Command | Spotted M Guard 25420 | -1/Command | Spotted M Guard 25425 | -1/Command | Spotted Combat Programmer 25434 | -1/Command | Spotted Combat Programmer 25436 | -1/Command | Destroyed Combat Programmer 25439 | -1/Command | Destroyed Combat Programmer 25498 | -1/Command | Destroyed M Guard 25498 | -1/Command | All MAIN.C guards destroyed 25729 | -1/Command | Met MAIN.C 25731 | -1/Command | 0b10 Conduit disabled 25737 | -1/Command | Build established: Scavenger-Construct 25753 | -1/Command | Allies destroyed MAIN.C Shell 25753 | -1/Command | MAIN.C activated Command garrisons 25760 | -1/Command | Hacked MAIN.C using A7's code 25774 | -1/Command | Destroyed MAIN.C 25784 | -1/Command | Discovered new exit (range 43) 25784 | -1/Command | Discovered new exit (range 85) 25784 | -1/Command | Extracted map data and part IDs from MAIN.C's data core 25833 | -1/Command | X0-1V1 sent hostile D-83 Annihilator (x1) 25929 | *** | Establishing 0b11! Last Messages --------------- 25848_ Slug penetrates Y-72 Warden. 25848_ Y-72 Warden destroyed. 25852_ Slug penetrates G-73 Enforcer. 25852_ G-73 Enforcer knocked back. 25854_ Slug penetrates G-73 Enforcer. 25854_ Destroyed Myomer Leg. 25854_ Destroyed Phase Gun. 25854_ G-73 Enforcer knocked back. 25855_ G-73 Enforcer destroyed. 25857_ Slug penetrates G-73 Enforcer. 25857_ G-73 Enforcer destroyed. 25857_ R-10 Processor collects Lgt. Quantum Reactor. 25860_ Slug penetrates Wall. 25860_ Slug penetrates R-10 Processor. 25860_ Penetrated by Slug. 25860_ Slug penetrates Wall. 25874_ K-01 Serf collects debris. 25895_ System corrupted: Heat flow error (+292). [Achievement: Commander 0b11] Map ----- +----------------------------------------------------+ | # # #?# ## # #??# | | ########## #?# ## # #??# | | ######+######?# ## # #??# | | #???# #??# ## # #??# | | #???# #??# ## # #??# | | " "" "" ##### ####+## + % #??# | | "" """" """" + # ##* #??# | | "" """" """" ###### !# ##%= #??# | | " "" "" #????# # ##!! #??# | | #????#[[ # ##%! #??# | | %= #????#[[ # ##!! #??# | | ##### #????# # ## ##?# | | #+########## #??## ##???#* " ## "#?# | | ############/#+##### #######+# ##+##""#"### | | # [ #! % | | # " %%% | | # "" ! # ^ % ! | | # """" # ###" !!! ########### | | # """" ######## "%^%!!! # #?# | | # "" == #??????# # !!w # #?# | | + =] #????????#^ *# #?# | | # #????????# B # #?# | | !!!############################;BB # #?# | | !!!##""""""# #????????# BBBB # #?? | | !! ##""" + #????????# BB + #?? | | #####""" + #????????# @ ######## # =#?? | | ????#""" + #????????# #??????# # #?? | | #???#""""""# #????????#####??????# # #?? | | #???######## ##############??????# # #?? | | #??????????# # !#??????# # #?? | | #??????????# + #??????# # #?? | | #??????????# # #??????# # #?? | | #??????????# # ######## # #?? | | #######????# # + # #?? | | #????# # ## # #?? | | ###### # ## #########?? | | +^^ # ## #?????????? | | # # ## ##### #?????????? | | #^ ^ # ## #???# #?????????? | | # # ## #???# #?????????? | | # ^ # ## #?###+#######???? | | "" # ##+#########+## #?# #???? | | """ # ^ # + #?# % * #???? | | ####### # ########## #?# #???? | | ??????# # #????????# ### #???? | | ??????# # #????????# + """" #???? | | ??????# # #?????#######+### """" #???? | | ??????# ######?????# # """" #???? | | ?????#######+########????#[ ] # """" #???? | | ?????#!!! ] #????# ###########???? | +----------------------------------------------------+ Best States ------------- Heat Dissipation 175 Energy Generation 100 Energy Capacity 3526 Matter Stores 1000 Matter Capacity 1000 Sight Range 26 Terrain Scan Density 10 Jamming Range 16 Base Temperature (-) 200 Armor Coverage 450 Resistance: KI 36 Resistance: TH 30 Resistance: EM 25 Weapon Shielding 33 Weapon Cycling 25 Phase Shifting 15 Evasion (%) 76 Targeting Accuracy 12 Core Analysis 8 Armor Integrity Analysis 40 Recoil Reduction 6 Kinecelleration 50 Offensive Hacking 10 Relay Coupler Types 5 Relay Coupler Value 240 Authchip Count 1 Item Schematics ----------------- Huge Storage Unit | -10/Materials | Hacked Adv. Remote Force Field | -4/Factory | Scanalyzed Exp. EM Disruption Field | -3/Research | Scanalyzed Robot Schematics ------------------ M-28 Smith | -7/Factory | Hacked Fabricated ------------ Huge Storage Unit | x1 | -5/Factory Adv. Remote Force Field | x1 | -4/Factory Adv. Remote Force Field | x1 | -3/Research Repaired ---------- Nothing Studied --------- Com. Wheel | -9/Materials | Hacked Imp. Remote Datajack | -5/Factory | Hacked Lrn. Missile Launcher | -5/Factory | Hacked Powered Hammer | -5/Factory | Hacked Adv. Remote Datajack | -3/Research | Hacked Alien Tech Used ----------------- None Achievements -------------- Commander 0b11 Explosive Keycard Insider Info Challenges ------------ None Game ------ Seed MakeshiftStealthTerminator Manual? 0 Play Time 05:44:31 Cumulative 609.0 hours Start 2026.07.21 @ 00:42:13 End 2026.07.21 @ 19:34:47 Sessions 9 Manual Loads 0 Difficulty Rogue Special Mode None Game No. 529 Rogue 493 Adventurer 36 Explorer 0 Win Type 1 Total 7 Types 2/1/0/1/1/0/0/2/0/0 Lore% 84 Gallery% 73 Achievement% 67 Wizard Run 0 Options --------- Layout 2 ASCII 0 Keyboard 0 Movement Numpad Keybinds 0 Fullscreen 1 Font 48/Smallcaps Map View 50x44 Zoom Use 0% Tactical HUD 1 Map Filters NONE Filters NONE Steam 1 RUN: 1b22b662-c470-4236-ad1d-02d8901b528d